Cogmind - Beta 14 @@@ ROGUE MODE // 2025.01.17 @ 19:31:26 Player: Dosh Result: Escaped! Performance ------------- Evolutions (9) 4500 Regions Visited (33) 6600 Robots Destroyed (472) 2360 Value Destroyed (29130) 29130 Prototype IDs (95) 1900 Alien Tech Used (9) 1800 Bonus (24239) 24239 TOTAL SCORE: 70529 Bonus ------- Triggered High Security 500 High Alert Combat Kills 5419 Follower Combat Kills 7957 Entered Garrisons 1600 Used RIF Installer 5000 Entered DSFs 500 Aligned with FarCom 300 Scanned by Researcher 1000 Pursued by Intercept 1000 Win 3000 Friendly Fire -2037 Cogmind --------- Core Integrity 793/1600 Matter 290/300 Energy 511/530 System Corruption 0% Temperature Cool (9) Movement Treading (155) Location To Epsilon Eridani Parts ------- > --- POWER (4) -------- Light Quantum Reactor Light Quantum Reactor > --- PROPULSION (6) --- Improved Heavy Treads Improved Heavy Treads Biometal Heavy Treads > --- UTILITY (14) ----- Experimental Heat Sink Experimental Heat Sink Cargo Storage Unit Core Analyzer Quantum Capacitor Advanced Force Field Relay Coupler [Sentry] (11) Relay Coupler [Hunter] (13) Relay Coupler [Behemoth] (5) Relay Coupler [Proto] (22) Relay Coupler [Proto] (6) > --- WEAPON (2) ------- Enhanced Nova Cannon Advanced Remote Datajack > --- INVENTORY (32) --- Reinforced Quantum Reactor Reinforced Quantum Reactor Improved Heavy Treads Biometal Medium Treads Experimental Biometal Medium Treads Advanced Heat Sink Experimental Heat Sink Superbattery (1500) Medium Reflective Plating Medium Reflective Plating Advanced Hacking Suite Relay Coupler [NC] (49) Relay Coupler [NC] (48) Relay Coupler [Brawler] (39) Relay Coupler [Duelist] (43) Relay Coupler [Sentry] (43) Phase Gun Enhanced Quantum Rifle Micro-nuke Launcher Peak State ------------ > --- POWER ------------ Quantum Reactor Quantum Reactor Light Quantum Reactor Reinforced Quantum Reactor > --- PROPULSION ------- Experimental Biometal Heavy Treads Experimental Biometal Heavy Treads Experimental Biometal Medium Treads Experimental Biometal Medium Treads > --- UTILITY ---------- Advanced Cryofiber Web Experimental Heat Sink Experimental Heat Sink Cargo Storage Unit Core Analyzer Quantum Capacitor SHELL Armor Relay Coupler [Swarmer] Relay Coupler [Behemoth] Relay Coupler [Proto] > --- WEAPON ----------- Improved Matter Neutralizer Enhanced Nova Cannon > --- INVENTORY -------- Quantum Reactor Light Quantum Reactor Reinforced Quantum Reactor Medium Treads Improved Heavy Treads Improved Heavy Treads Improved Heavy Treads Experimental Heat Sink Superbattery Quantum Capacitor Advanced Hacking Suite Relay Coupler [NC] Relay Coupler [NC] Relay Coupler [NC] Relay Coupler [Swarmer] Relay Coupler [Brawler] Relay Coupler [Brawler] Relay Coupler [Duelist] Relay Coupler [Duelist] Relay Coupler [Sentry] Relay Coupler [Sentry] Relay Coupler [Hunter] Relay Coupler [Hunter] Relay Coupler [Proto] Relay Coupler [Proto] Core Regenerator Integrity Redistributor HERF Cannon [Rating: 222] Favorites ----------- Power Quantum Reactor Engine Improved Deuterium Engine Power Core Micro Fission Core Reactor Quantum Reactor Propulsion Armored Medium Treads Treads Armored Medium Treads Utility Relay Coupler [Grunt] Device Advanced Cooling System Storage Cargo Storage Unit Processor Targeting Computer Hackware Relay Coupler [Grunt] Protection Layered Heavy Armor Plating Weapon Heavy Particle Cannon Energy Gun Heavy Quantum Rifle Energy Cannon Heavy Particle Cannon Ballistic Gun Enhanced Autogun Ballistic Cannon Flak Cannon Launcher Improved Grenade Launcher Special Weapon Advanced Remote Datajack Slashing Weapon Makeshift Axe Special Melee Weapon Improved Datajack Build | -11 -10 -10 -10 -9 -8 -8 -8 -8 -8 -8 -8 -8 -6 -6 -6 -6 -5 -5 -5 -5 -4 -4 -3 -3 -2 -2 -2 -2 -2 -1 -1 -1 -1 ------- Run | Yrd Mat Min Exi Min Mat Gar Mat Gar Mat Sto Gar Rec Fac Was Fac Gar Fac Was Fac Gar Fac DSF Res Gar Res Gar Res Tes Sec Acc Gar Acc Com Slots Evolved 18 | . . . . . 4 . . . . . . . 4 . . . 2 . . . 2 . 2 . 2 . . . . 2 . . . Power 2 | . . . . . . . . . . . . . 1 . . . . . . . . . . . 1 . . . . . . . . Propulsion 4 | . . . . . 1 . . . . . . . 1 . . . . . . . 2 . . . . . . . . . . . . Utility 12 | . . . . . 3 . . . . . . . 2 . . . 2 . . . . . 2 . 1 . . . . 2 . . . Weapon . | . . . . . . . . . . . . . . . . . . . . . . . . . . . . . . . . . . Parts Attached 469 | 6 8 . . 3 37 21 13 21 34 20 11 3 5 16 2 25 7 2 2 7 2 18 23 16 4 15 21 33 33 4 22 28 7 Power 55 | 1 1 . . . 4 3 . 1 4 . 1 . 1 3 . 3 . 1 . . . 3 1 2 1 . 1 2 7 1 6 4 4 Engine 11 | 1 1 . . . 3 1 . . 3 . 1 . . . . 1 . . . . . . . . . . . . . . . . . Core 8 | . . . . . 1 2 . 1 1 . . . 1 . . . . . . . . 2 . . . . . . . . . . . Reactor 36 | . . . . . . . . . . . . . . 3 . 2 . 1 . . . 1 1 2 1 . 1 2 7 1 6 4 4 Propulsion 63 | 2 2 . . 2 14 6 . 1 3 . . . 1 5 . 2 . . . 1 1 4 . 1 . . 2 4 2 . 2 6 2 Treads 63 | 2 2 . . 2 14 6 . 1 3 . . . 1 5 . 2 . . . 1 1 4 . 1 . . 2 4 2 . 2 6 2 Leg . | . . . . . . . . . . . . . . . . . . . . . . . . . . . . . . . . . . Wheel . | . . . . . . . . . . . . . . . . . . . . . . . . . . . . . . . . . . Hover . | . . . . . . . . . . . . . . . . . . . . . . . . . . . . . . . . . . Flight . | . . . . . . . . . . . . . . . . . . . . . . . . . . . . . . . . . . Utility 197 | 1 3 . . . 10 4 8 8 15 10 4 1 2 4 2 10 4 . 1 4 1 8 13 3 3 14 10 15 14 2 9 13 1 Device 103 | . 1 . . . 4 . 4 3 7 8 2 . 2 3 . 6 3 . . 3 1 4 7 1 2 9 6 9 8 1 4 4 1 Storage 9 | 1 1 . . . 1 . . . . 1 . . . . . 1 . . . . . . . . . 2 . 1 1 . . . . Processor 3 | . 1 . . . . . . . . . . . . . . . . . . . . . . . . . 1 . 1 . . . . Hackware 49 | . . . . . . 2 . 2 2 . . . . 1 1 2 1 . 1 1 . 2 6 1 1 3 2 4 4 . 5 8 . Protection 33 | . . . . . 5 2 4 3 6 1 2 1 . . 1 1 . . . . . 2 . 1 . . 1 1 . 1 . 1 . Artifact . | . . . . . . . . . . . . . . . . . . . . . . . . . . . . . . . . . . Weapon 154 | 2 2 . . 1 9 8 5 11 12 10 6 2 1 4 . 10 3 1 1 2 . 3 9 10 . 1 8 12 10 1 5 5 . Energy Gun 2 | . . . . . . . . . . . . . . . . . . . . . . . . . . . . 2 . . . . . Energy Cannon 87 | . . . . . 6 4 5 5 6 4 1 1 1 2 . 6 2 . 1 1 . 2 4 3 . 1 7 8 9 1 3 4 . Ballistic Gun 16 | 2 2 . . 1 1 . . . 1 5 3 1 . . . . . . . . . . . . . . . . . . . . . Ballistic Cannon 10 | . . . . . 2 . . 1 3 . . . . . . . . . . . . . 1 3 . . . . . . . . . Launcher 10 | . . . . . . 3 . 1 . 1 2 . . . . 2 . . . 1 . . . . . . . . . . . . . Special Weapon 20 | . . . . . . . . . . . . . . . . 2 1 1 . . . 1 4 4 . . 1 2 1 . 2 1 . Impact Weapon . | . . . . . . . . . . . . . . . . . . . . . . . . . . . . . . . . . . Slashing Weapon 2 | . . . . . . . . 2 . . . . . . . . . . . . . . . . . . . . . . . . . Piercing Weapon . | . . . . . . . . . . . . . . . . . . . . . . . . . . . . . . . . . . Special Melee Weapon 7 | . . . . . . 1 . 2 2 . . . . 2 . . . . . . . . . . . . . . . . . . . Unidentified Prototypes 17 | . . . . . . . . . 1 2 . . . . . . 1 . . . . . 2 . . . 1 6 4 . . . . Corrupted Parts 1 | . . . . . . . . . . . . . . . . . . . . . . . . . . . . 1 . . . . . System Corruption 6 | . . . . . . . . . . . . . . . . . . . . . . . . . . . . 6 . . . . . Parts Lost 85 | . 2 . . 3 5 3 . 5 6 . . . . 1 1 7 2 . . 1 . 14 1 . . . 1 . 6 1 8 16 2 Power 23 | . 1 . . . 1 1 . 1 1 . . . . . . 3 1 . . . . 3 . . . . 1 . 1 . 3 5 1 Propulsion 15 | . 1 . . 2 1 1 . . . . . . . 1 . . . . . . . 3 . . . . . . 1 . 1 3 1 Utility 34 | . . . . . 1 1 . 4 2 . . . . . 1 4 1 . . 1 . 7 1 . . . . . 3 . 2 6 . Weapon 13 | . . . . 1 2 . . . 3 . . . . . . . . . . . . 1 . . . . . . 1 1 2 2 . Highest Loss Streak 11 | . 2 . . 2 3 1 . 3 2 . . . . 1 1 2 1 . . 1 . 7 1 . . . 1 . 3 1 5 11 1 To Critical Strikes 1 | . . . . . . . . . . . . . . 1 . . . . . . . . . . . . . . . . . . . Average Slot Usage (%) 83 | . 92 100 100 100 93 93 90 89 85 90 95 99 92 81 86 80 72 82 82 79 78 59 74 76 73 76 74 74 81 75 74 74 75 Engine 3 | . 11 14 14 14 8 6 . . 7 9 9 9 6 . . . 4 1 . . . . . . . . . . . . . . . Core 1 | . . . . . . 2 9 9 1 . . . 6 4 . . . . . . . 2 6 1 . . . . . . . . . Reactor 5 | . . . . . . . . . . . . . . 4 13 11 5 8 11 11 10 3 2 7 13 13 13 13 13 14 14 11 10 Treads 18 | . 27 28 28 28 26 25 18 18 23 27 27 27 19 13 13 13 11 11 11 10 15 9 14 14 13 13 13 14 16 15 14 15 11 Device 15 | . . . . . 12 9 9 8 10 18 19 19 25 24 26 20 26 35 35 35 36 20 15 17 17 19 18 17 19 15 12 14 11 Storage 6 | . 14 14 14 14 9 9 9 9 9 9 9 9 6 6 6 6 5 5 5 5 5 5 4 4 4 4 4 4 4 3 3 3 3 Processor 1 | . 9 14 14 14 9 5 . . . . . . . . . . . . . . . . . . . . . . . 3 3 3 3 Hackware 9 | . . . . . . 10 18 17 8 . . . . 5 6 8 4 5 5 3 . 4 15 15 13 16 14 13 18 11 12 13 25 Protection 5 | . . . . . 9 7 8 9 7 9 11 16 13 6 6 4 . . . . . . 4 4 4 1 2 3 . 3 3 2 . Energy Cannon 7 | . . . . . 14 16 17 8 11 4 2 8 12 9 13 12 8 5 6 8 5 7 4 4 4 4 4 3 4 3 4 5 3 Ballistic Gun 3 | . 27 28 28 28 . . . . 3 13 15 8 . . . . . . . . . . . . . . . . . . . . . Special Weapon 1 | . . . . . . . . . . . . . . . . . 1 4 3 . . 2 2 3 4 4 3 3 4 3 1 . 3 Peak Build Rating 222 | 6 8 8 10 11 31 53 56 55 56 58 60 60 78 85 87 89 103 110 114 117 127 130 147 157 166 177 175 191 191 214 222 215 192 Average Rating 101 | 4 6 8 8 10 25 36 51 51 48 51 55 58 77 73 84 85 92 107 111 112 126 91 138 150 164 166 170 176 184 210 213 194 179 On Entrance 94 | . 6 8 8 10 10 30 49 52 52 50 52 60 58 78 85 87 89 103 110 114 109 127 121 144 153 165 167 174 183 173 213 215 160 Naked Turns . | . . . . . . . . . . . . . . . . . . . . . . . . . . . . . . . . . . Heaviest Build 291 | 14 29 29 29 28 75 79 65 65 80 79 83 86 100 114 114 209 199 203 209 210 208 223 240 256 272 272 278 272 249 281 286 291 243 Greatest Support 250 | 40 40 40 40 40 62 97 97 97 97 81 81 81 124 140 140 150 150 150 150 150 225 225 180 195 195 195 235 245 245 245 250 240 235 Greatest Overweight (x) 51 | . 1 . . . 1 1 . . 1 . 1 1 . 1 . 1 1 1 1 1 . 51 1 1 1 1 1 1 1 1 1 1 1 Average Overweight (x) . | . . . . . . . . . . . . . . . . . 1 1 1 1 . 2 1 1 1 1 1 . . 1 1 . . Largest Inventory Capacity 32 | 8 15 15 15 15 20 20 20 20 20 20 20 20 20 20 20 30 30 30 30 30 30 30 30 30 30 30 30 30 32 32 32 32 32 Average Capacity 24 | 7 14 15 15 15 19 20 20 20 20 20 20 20 20 20 20 26 30 30 30 30 30 30 30 30 30 30 30 30 30 32 32 32 32 Most Carried 32 | 2 9 9 13 13 20 20 20 20 20 20 20 20 20 20 20 26 26 28 30 30 28 27 30 30 29 30 30 30 30 23 32 32 22 Average Carried 22 | 1 6 9 10 11 16 19 20 19 19 19 19 19 16 19 19 22 25 26 27 29 27 24 28 28 27 28 29 29 26 19 27 28 19 Final Capacity 32 | 8 15 15 15 15 20 20 20 20 20 20 20 20 20 20 20 30 30 30 30 30 30 30 30 30 30 30 30 30 32 32 32 32 32 Final Carried 32 | 2 9 9 13 10 20 20 20 20 20 20 20 20 17 20 20 25 26 27 30 30 27 25 27 30 27 30 29 28 24 20 32 17 20 Class Distribution -------------------- 46% | Botlord-Mutant 27% | Bothacker-Mutant 14% | Mutant 7% | Scavenger-Mutant 3% | Generator-Mutant Dominant Class ---------------- Mutant | -10/Materials Mutant | -10/Mines Mutant | -10/Exiles Mutant | -9/Mines Scavenger-Mutant | -8/Materials Bothacker-Mutant | -8/Garrison Bothacker-Mutant | -8/Materials Bothacker-Mutant | -8/Garrison Bothacker-Mutant | -8/Materials Mutant | -8/Storage Bothacker-Mutant | -8/Garrison Bothacker-Mutant | -8/Recycling Bothacker-Mutant | -6/Factory Bothacker-Mutant | -6/Waste Bothacker-Mutant | -6/Factory Botlord-Mutant | -6/Garrison Botlord-Mutant | -5/Factory Botlord-Mutant | -5/Waste Botlord-Mutant | -5/Factory Botlord-Mutant | -5/Garrison Botlord-Mutant | -4/Factory Botlord-Mutant | -4/DSF Botlord-Mutant | -3/Research Botlord-Mutant | -3/Garrison Botlord-Mutant | -2/Research Botlord-Mutant | -2/Garrison Botlord-Mutant | -2/Research Botlord-Mutant | -2/Testing Botlord-Mutant | -2/Section 7 Botlord-Mutant | -1/Access Botlord-Mutant | -1/Garrison Generator-Mutant | -1/Access Botlord-Mutant | -1/Command Resources | -11 -10 -10 -10 -9 -8 -8 -8 -8 -8 -8 -8 -8 -6 -6 -6 -6 -5 -5 -5 -5 -4 -4 -3 -3 -2 -2 -2 -2 -2 -1 -1 -1 -1 ----------- Run | Yrd Mat Min Exi Min Mat Gar Mat Gar Mat Sto Gar Rec Fac Was Fac Gar Fac Was Fac Gar Fac DSF Res Gar Res Gar Res Tes Sec Acc Gar Acc Com Matter Collected 10995 | 156 418 33 . 75 739 401 136 301 714 663 406 246 50 155 10 434 209 71 34 502 . 190 398 529 59 518 288 932 1280 66 401 181 400 Remotely . | . . . . . . . . . . . . . . . . . . . . . . . . . . . . . . . . . . Salvage Created 25225 | . 642 . . 112 1797 931 750 601 1253 771 529 272 637 1141 465 1163 464 . 79 593 . 570 431 782 171 767 1233 1735 2659 406 2261 1329 681 Parts 1093 | . 44 . . 6 97 59 39 25 77 53 27 10 19 18 14 48 19 . 5 21 . 16 16 39 4 38 49 72 113 16 69 56 24 Haulers Intercepted 16 | . 2 . . . 6 . 4 . 1 . . . 2 . . . . . . . . . . . . . . . 1 . . . . Recyclers Shooed 6 | . . . . . 3 . . . 1 . . . 1 . . . 1 . . . . . . . . . . . . . . . . Parts Field Recycled . | . . . . . . . . . . . . . . . . . . . . . . . . . . . . . . . . . . Retrieved Matter . | . . . . . . . . . . . . . . . . . . . . . . . . . . . . . . . . . . Parts Self-Destructed . | . . . . . . . . . . . . . . . . . . . . . . . . . . . . . . . . . . Prevented . | . . . . . . . . . . . . . . . . . . . . . . . . . . . . . . . . . . Kills | -11 -10 -10 -10 -9 -8 -8 -8 -8 -8 -8 -8 -8 -6 -6 -6 -6 -5 -5 -5 -5 -4 -4 -3 -3 -2 -2 -2 -2 -2 -1 -1 -1 -1 ------- Run | Yrd Mat Min Exi Min Mat Gar Mat Gar Mat Sto Gar Rec Fac Was Fac Gar Fac Was Fac Gar Fac DSF Res Gar Res Gar Res Tes Sec Acc Gar Acc Com Combat Hostiles Destroyed 420 | . 12 . . 3 34 31 10 18 28 20 20 3 5 4 7 16 9 . 2 35 . 5 7 13 2 10 13 18 29 5 28 24 9 Melee 2 | . . . . . 1 . . . . . . . . . . . 1 . . . . . . . . . . . . . . . . Guns 34 | . 12 . . 3 1 . . . 1 9 7 1 . . . . . . . . . . . . . . . . . . . . . Cannons 265 | . . . . . 32 13 10 12 26 5 1 2 5 3 4 5 8 . 2 15 . 4 7 11 2 9 5 14 18 4 21 20 7 AOE 72 | . . . . . . 18 . 6 1 6 12 . . . . 8 . . . 20 . . . . . 1 . . . . . . . Classes Destroyed 27 | . 6 . . . 5 1 . 1 3 . . . . 1 . 1 . . . 2 . . . 1 . . . 1 2 . 1 1 1 Worker 14 | . 2 . . . 1 . . . 1 3 . . . . . . 2 . . . . . 1 . . . . 1 3 . . . . Builder 9 | . . . . . 1 . . . . . . . . . 1 . 1 . . . . . 1 . . . . 2 3 . . . . Tunneler 1 | . . . . . . . . . 1 . . . . . . . . . . . . . . . . . . . . . . . . Hauler 16 | . 2 . . . 6 . 4 . 1 . . . 2 . . . . . . . . . . . . . . . 1 . . . . Recycler 6 | . 1 . . . 1 . . . 1 . . 1 2 . . . . . . . . . . . . . . . . . . . . Mechanic 1 | . . . . . . . . . . . . . . . . . . . . . . . . . . . . . 1 . . . . Operator 5 | . 1 . . . 1 . . . . 1 . . . . 1 . . . . . . . . . . . . . 1 . . . . Watcher 12 | . . . . . 4 1 . . 4 . . . . . . . . . . . . . . 1 . . 1 . 1 . . . . Swarmer 84 | . 3 . . . 8 11 . 6 7 4 10 . . . . 6 3 . . . . . 1 6 . . . . 7 . 3 9 . Cutter 1 | . . . . . . . . . . . . . . . . . . . . . . . . 1 . . . . . . . . . Saboteur 1 | . . . . . . . . . . . . . . . . . . . . . . . . . . . . . . . . 1 . Grunt 126 | . 9 . . 3 16 11 4 6 11 7 7 . 4 . 2 5 3 . . . . 1 3 3 1 1 . 4 2 1 11 4 7 Brawler 4 | . . . . . . . . 1 . 1 . . . . . . . . . . . . . 1 . 1 . . . . . . . Duelist 14 | . . . . . 1 . . . . . . . 1 . 1 1 . . . . . 1 . . . 1 . . . 2 3 3 . Protector 1 | . . . . . . . . . . . . . . . . . . . . . . . . . . . . . 1 . . . . Researcher 5 | . . . . . . . . . . . . . . . . . . . . . . . . . . . . 3 2 . . . . Sentry 47 | . . . . . 8 6 5 2 6 8 2 3 . . 2 1 1 . . . . . . 1 1 . . . . . 1 . . Demolisher 1 | . . . . . . . . . . . . . . . . . . . . . . . . . . . . . . . 1 . . Specialist 13 | . . . . . . . . . 2 . . . . . . 1 . . . . . 3 . . . . 2 . 3 2 . . . Hunter 38 | . . . . . 1 1 1 . 1 . 1 . . . . 1 2 . . 1 . . 1 2 . 2 8 7 3 . 4 2 . Programmer 50 | . . . . . . 2 . 3 . . . . . . 2 2 . . 2 7 . . 2 2 . 4 2 7 4 . 6 4 1 Heavy 2 | . . . . . . . . . 1 . . . . . . . . . . . . 1 . . . . . . . . . . . Behemoth 6 | . . . . . . . . . . . . . . . . 1 . . . . . . . . . 1 1 . 2 . . 1 . Compactor 4 | . . . . . . . . . . . . . . 4 . . . . . . . . . . . . . . . . . . . S7 Guard 3 | . . . . . . . . . . . . . . . . . . . . . . . . . . . . . 3 . . . . Tracker 1 | . . . . . . . . . . . . . . . . . . . . . . . . . . . . . 1 . . . . Combat Programmer 2 | . . . . . . . . . . . . . . . . . . . . . . . . . . . . . 2 . . . . Executioner 1 | . . . . . . . . . . . . . . . . . . . . . . . . . . . . . 1 . . . . Alpha 7 1 | . . . . . . . . . . . . . . . . . . . . . . . . . . . . . . . . . 1 Assembled 26 | . . . . . . . . . . . . . . . . . . . . 26 . . . . . . . . . . . . . Surgeon 2 | . . . . . . . . . . . . . . . . . . . . 2 . . . . . . . . . . . . . Thug 1 | . . . . . . . . . . . . . . . . . . . . 1 . . . . . . . . . . . . . Best Kill Streak 14 | . 4 . . 2 6 10 2 6 6 8 14 1 7 1 3 8 5 . 1 14 . 1 4 4 2 3 5 3 5 3 4 9 4 Combat Bots Only 14 | . 4 . . 2 6 10 2 6 5 6 14 1 5 1 3 8 3 . 1 14 . 1 3 4 2 3 5 3 5 3 4 9 4 Max Kills in Single Turn 4 | . 2 . . 1 1 4 1 4 2 4 3 1 3 1 1 3 1 . 1 2 . 1 2 1 1 1 1 1 1 1 1 1 1 Gunslinging . | . . . . . . . . . . . . . . . . . . . . . . . . . . . . . . . . . . Exploded 4 | . . . . . . 4 . 4 1 3 3 . . . . 2 . . . 2 . . . . . 1 . . . . . . . Melee 1 | . . . . . 1 . . . . . . . . . . . 1 . . . . . . . . . . . . . . . . Uniques/NPCs Destroyed . | . . . . . . . . . . . . . . . . . . . . . . . . . . . . . . . . . . Combat | -11 -10 -10 -10 -9 -8 -8 -8 -8 -8 -8 -8 -8 -6 -6 -6 -6 -5 -5 -5 -5 -4 -4 -3 -3 -2 -2 -2 -2 -2 -1 -1 -1 -1 -------- Run | Yrd Mat Min Exi Min Mat Gar Mat Gar Mat Sto Gar Rec Fac Was Fac Gar Fac Was Fac Gar Fac DSF Res Gar Res Gar Res Tes Sec Acc Gar Acc Com Hostile Shots Fired 3050 | . 91 . . 44 130 45 25 80 164 72 101 14 32 2 77 133 115 . 11 106 . 276 64 134 35 111 96 150 379 29 137 358 39 Missed 789 | . 25 . . 13 28 13 6 17 47 26 27 9 1 . 27 35 34 . 1 25 . 88 15 40 14 22 19 43 94 5 30 78 7 Damage Taken 35488 | . 724 . . 606 1307 473 378 952 1661 731 682 40 575 70 371 1769 1142 22 167 1126 . 2894 690 896 257 1149 1338 1382 3290 741 2844 6522 689 Core 2335 | . 143 . . 91 157 22 . 47 65 13 48 . 37 . 14 94 106 . 28 81 . 275 . . 26 38 55 60 278 27 239 356 35 Absorbed by Shields 10275 | . . . . . . . . . . . 245 38 197 20 295 269 654 23 180 714 . 195 514 707 266 1164 786 1292 2639 . . . 77 Reduced by Siege Mode 1976 | . . . . . . . 10 37 43 . . . 50 . 15 80 20 . . 20 . 280 54 102 . 106 223 207 469 20 89 127 24 Ignored by Resistances 1905 | . . . . . . . . . . . . . . . . 6 . . . . . . . 549 . 523 158 . 353 166 65 64 21 Regen/Repaired (Parts) 7282 | . 158 . . . . . . . 834 . . . . . . . 570 129 95 570 . . 209 . . . . 433 . 272 870 3142 . Core Remaining (%) 66 | 100 . . . 6 . . . . . . . 36 . . . 82 . . . 78 . 76 . 100 . . . . 68 . . . 49 Volleys Fired 2145 | . 50 . . 18 123 63 39 52 104 78 55 13 21 28 22 99 34 7 6 75 . 34 42 62 14 145 83 150 297 23 213 126 69 Largest 2 | . 2 . . 2 2 2 2 2 2 2 2 2 2 2 2 2 2 1 2 2 . 2 2 2 1 1 2 1 1 1 1 2 1 Hottest 240 | . 40 . . 40 150 150 150 150 150 125 115 115 180 180 180 195 190 7 190 190 . 188 195 240 120 120 208 120 120 120 120 201 120 Shots Fired 2797 | . 100 . . 36 192 85 71 79 172 138 101 26 42 54 44 164 55 7 10 113 . 57 47 91 14 145 85 153 284 23 213 127 69 Gun 377 | . 100 . . 36 32 . . . 21 99 76 13 . . . . . . . . . . . . . . . . . . . . . Cannon 2030 | . . . . . 160 71 71 77 151 33 15 13 42 54 44 139 45 . 8 81 . 52 30 74 8 112 69 114 216 22 182 105 42 Launcher 74 | . . . . . . 14 . 2 . 6 10 . . . . 10 . . . 32 . . . . . . . . . . . . . Special 316 | . . . . . . . . . . . . . . . . 15 10 7 2 . . 5 17 17 6 33 16 39 68 1 31 22 27 Kinetic 501 | . 100 . . 36 83 . . 14 55 99 76 13 . . . . . . . . . . 4 21 . . . . . . . . . Thermal 1730 | . . . . . 109 71 71 63 117 33 15 13 42 54 44 139 45 . 8 81 . 52 26 53 8 112 41 77 122 22 169 101 42 Explosive 74 | . . . . . . 14 . 2 . 6 10 . . . . 10 . . . 32 . . . . . . . . . . . . . Electromagnetic 176 | . . . . . . . . . . . . . . . . . . . . . . . . . . . 28 37 94 . 13 4 . Robot Hit Streak 43 | . 7 . . 11 18 8 11 16 17 14 13 15 10 19 15 15 8 5 6 5 . 16 17 14 6 25 11 16 22 27 30 43 11 Robot Miss Streak 8 | . 2 . . 3 7 3 2 7 5 4 3 1 1 1 2 3 8 1 7 5 . 2 4 2 1 4 4 5 7 2 5 5 3 Penetration Max . | . . . . . . . . . . . . . . . . . . . . . . . . . . . . . . . . . . Secondary Targets 4 | . 2 . . 1 . . . . . . 1 . . . . . . . . . . . . . . . . . . . . . . Max Gunslinging Chain 1 | . 1 . . 1 . . . . . . 1 . . . . . . . . . . . . . . . . . . . . . . Capacitor 863 | . . . . . . . . . . . . . . . . . . . . . . . . . 7 112 65 114 216 22 182 103 42 Shots Hit Robots 1787 | . 62 . . 26 124 24 40 47 113 68 48 19 28 55 33 91 39 6 5 40 . 47 36 53 11 92 61 106 198 18 153 93 51 Core Hits 798 | . 30 . . 7 88 43 17 31 65 38 31 7 17 10 10 49 19 . 3 57 . 14 13 17 4 19 11 29 52 11 60 32 14 Critical Kills 31 | . . . . . . . . . . . . . . 1 3 2 . . . . . 1 1 2 . . 2 1 4 1 8 3 2 Critical Parts Destroyed 2 | . 1 . . . . . . . . 1 . . . . . . . . . . . . . . . . . . . . . . . Critical Strikes 36 | . 1 . . . . . . . . 1 . . . 1 3 2 . . . . . 1 1 2 . . 2 1 7 1 8 3 2 Meltdown 31 | . . . . . . . . . . . . . . 1 3 2 . . . . . 1 1 2 . . 2 1 4 1 8 3 2 Destroy 2 | . 1 . . . . . . . . 1 . . . . . . . . . . . . . . . . . . . . . . . Corrupt 3 | . . . . . . . . . . . . . . . . . . . . . . . . . . . . . 3 . . . . Melee Attacks 35 | . . . . . . . . 19 5 . . . . 11 . . . . . . . . . . . . . . . . . . . Impact . | . . . . . . . . . . . . . . . . . . . . . . . . . . . . . . . . . . Slashing 11 | . . . . . . . . 11 . . . . . . . . . . . . . . . . . . . . . . . . . Piercing . | . . . . . . . . . . . . . . . . . . . . . . . . . . . . . . . . . . Sneak Attacks 8 | . . . . . . . . . 5 . . . . 3 . . . . . . . . . . . . . . . . . . . Combat Hostiles 3 | . . . . . . . . . . . . . . 3 . . . . . . . . . . . . . . . . . . . Follow-up Attacks . | . . . . . . . . . . . . . . . . . . . . . . . . . . . . . . . . . . Damage Inflicted 59096 | . 847 . . 331 3245 2680 1087 1617 3510 2142 1472 524 1318 1573 1169 3979 1188 . 192 3052 . 1428 942 1573 339 3197 1932 3261 5954 746 5142 3215 1441 Guns 3487 | . 802 . . 331 274 . . . 168 1031 714 167 . . . . . . . . . . . . . . . . . . . . . Cannons 48321 | . . . . . 2923 1432 1068 1183 3053 345 135 343 1021 1573 1131 2750 1148 . 192 1260 . 1428 875 1569 315 3197 1931 3149 5828 736 5094 3201 1441 Explosions 6493 | . . . . . . 1248 . 434 165 752 623 . 297 . . 1229 . . . 1745 . . . . . . . . . . . . . Melee . | . . . . . . . . . . . . . . . . . . . . . . . . . . . . . . . . . . Ramming 795 | . 45 . . . 48 . 19 . 124 14 . 14 . . 38 . 40 . . 47 . . 67 4 24 . 1 112 126 10 48 14 . Kinetic 5489 | . 802 . . 331 1047 . . 217 639 1031 714 167 . . . . . . . . . . 157 384 . . . . . . . . . Thermal 42607 | . . . . . 2150 1432 1068 966 2582 345 135 343 1318 1573 1131 2750 1148 . 192 1260 . 1428 718 1185 315 3197 1128 2134 3920 736 4933 3079 1441 Explosive 6196 | . . . . . . 1248 . 434 165 752 623 . . . . 1229 . . . 1745 . . . . . . . . . . . . . Electromagnetic 4009 | . . . . . . . . . . . . . . . . . . . . . . . . . . . 803 1015 1908 . 161 122 . Impact . | . . . . . . . . . . . . . . . . . . . . . . . . . . . . . . . . . . Slashing . | . . . . . . . . . . . . . . . . . . . . . . . . . . . . . . . . . . Piercing . | . . . . . . . . . . . . . . . . . . . . . . . . . . . . . . . . . . Highest Corruption 47 | . . . . . . . . 3 3 . 1 1 . . . 2 . . 1 3 . . 3 7 . . 8 25 47 . . . . Average Corruption 10 | . . . . . . . . 2 2 . 1 1 . . . 1 . . 1 1 . . 2 6 . . 7 16 32 . . . . Corruption Purged 3 | . . . . . . . . . 3 . . . . . . . . . . . . . . . . . . . . . . . . Corruption Blocked . | . . . . . . . . . . . . . . . . . . . . . . . . . . . . . . . . . . Effects 480 | . . . . . . . . 15 44 . 9 6 . . . 23 . . . 11 . . 6 45 . . 6 134 181 . . . . Message Errors 119 | . . . . . . . . 3 7 . 4 2 . . . 6 . . . 3 . . 1 19 . . . 34 40 . . . . Matter Fused 122 | . . . . . . . . 2 15 . 1 2 . . . 7 . . . 4 . . 2 8 . . 1 36 44 . . . . Heat Flow Errors 54 | . . . . . . . . 5 6 . 1 . . . . 3 . . . 2 . . . 4 . . 2 15 16 . . . . Energy Discharges 43 | . . . . . . . . 1 5 . . 1 . . . 1 . . . . . . 1 3 . . 2 10 19 . . . . Parts Rejected 6 | . . . . . . . . . 2 . . . . . . . . . . 1 . . . 1 . . . 1 1 . . . . Parts Fused 4 | . . . . . . . . . . . . 1 . . . . . . . . . . . . . . . 3 . . . . . Data Loss (minor) 48 | . . . . . . . . 2 6 . . . . . . 2 . . . . . . 1 4 . . 1 15 17 . . . . Data Loss (major) 23 | . . . . . . . . . 1 . . . . . . . . . . . . . . 2 . . . 9 11 . . . . Misfires 19 | . . . . . . . . . 1 . 1 . . . . 1 . . . 1 . . . 2 . . . 7 6 . . . . Alerts 14 | . . . . . . . . 2 1 . 2 . . . . 1 . . . . . . 1 2 . . . . 5 . . . . Misdirections 3 | . . . . . . . . . . . . . . . . . . . . . . . . . . . . . 3 . . . . Weapon Failures 25 | . . . . . . . . . . . . . . . . 2 . . . . . . . . . . . 4 19 . . . . Overload Shots . | . . . . . . . . . . . . . . . . . . . . . . . . . . . . . . . . . . Overflow Damage 1386 | . . . . . 16 63 15 11 89 31 . . 82 . 56 95 34 . . 188 . . 9 107 . 74 50 163 172 . 63 68 . Projectiles 1010 | . . . . . 16 35 15 . 89 . . . 2 . 38 16 34 . . 108 . . 9 107 . 74 50 131 164 . 63 59 . Explosions 318 | . . . . . . 28 . 11 . 31 . . 80 . . 79 . . . 80 . . . . . . . . . . . 9 . Melee 58 | . . . . . . . . . . . . . . . 18 . . . . . . . . . . . . 32 8 . . . . Knockbacks 56 | . . . . . 31 . . 4 15 . . . . . . . . . . 1 . . . 3 . . . 1 . . 1 . . Impact 3 | . . . . . . . . . . . . . . . . . . . . 1 . . . . . . . 1 . . 1 . . Kinetic 50 | . . . . . 29 . . 4 14 . . . . . . . . . . . . . . 3 . . . . . . . . . Secondary 3 | . . . . . 2 . . . 1 . . . . . . . . . . . . . . . . . . . . . . . . Self-Inflicted Damage 984 | . . . . . . 45 . 25 61 54 36 . 181 . . 96 . . . 450 . . . . . . . . . . . 36 . Shots 24 | . . . . . . 1 . 1 1 1 1 . 2 . . 4 . . . 12 . . . . . . . . . . . 1 . Rammed 67 | 1 7 1 . . 7 . 3 . 14 3 . 2 . . 1 . 3 . . 2 . . 7 1 4 . 1 2 3 1 3 1 . Targets Rammed 74 | 1 8 1 . . 9 . 3 . 15 3 . 2 . . 1 . 3 . . 2 . . 7 1 4 . 1 2 6 1 3 1 . Kicked . | . . . . . . . . . . . . . . . . . . . . . . . . . . . . . . . . . . Crushed 7 | . 1 . . . 2 . . . 1 . . . . . . . . . . . . . . . . . . . 3 . . . . Highest Temperature 448 | . 13 . . 30 351 208 315 342 394 . 93 178 309 170 10 263 1 . . 182 . 360 123 234 280 448 358 435 396 . 366 132 362 Average Temperature 105 | . 6 . . 12 121 61 80 114 114 . 30 80 131 60 8 68 1 . . 114 . 109 55 65 110 117 132 141 146 . 134 44 139 Received Heat Transfer 5488 | . 369 . . 165 513 180 162 297 396 342 137 8 170 . 124 208 111 . 8 28 . 268 34 157 44 305 288 18 49 18 315 675 99 Effects 23 | . . . . . 2 . 3 4 4 . . . . . . . . . . . . 2 . . . 5 1 1 . . 1 . . Shutdowns 10 | . . . . . . . . 1 1 . . . . . . . . . . . . 1 . . . 4 1 1 . . 1 . . Energy Bleed 3 | . . . . . 1 . . 1 1 . . . . . . . . . . . . . . . . . . . . . . . . Interference 7 | . . . . . . . 3 2 2 . . . . . . . . . . . . . . . . . . . . . . . . Damage (minor) 3 | . . . . . 1 . . . . . . . . . . . . . . . . 1 . . . 1 . . . . . . . Siege Activations 79 | . . . . . . . 2 3 2 . . . 1 . 2 5 2 . . 3 . 4 2 5 . 4 5 7 13 2 12 4 1 Total Turns 1275 | . . . . . . . 53 95 54 . . . 42 . 43 74 32 . . 24 . 75 35 130 . 70 72 109 200 12 88 59 8 Longest Duration 46 | . . . . . . . 34 39 33 . . . 42 . 25 30 20 . . 12 . 33 24 46 . 34 29 32 42 8 20 31 8 Robots Corrupted 19 | . . . . . . . . . . . . . . . . . . . . . . . . . . . 6 5 8 . . . . Combat Hostiles 15 | . . . . . . . . . . . . . . . . . . . . . . . . . . . 6 3 6 . . . . Parts Fried 36 | . . . . . . . . . . . . . . . 3 . . . . . . . . . . . 7 16 7 . 1 2 . Impact Corruptions 5 | . . . . . . . . . . . . . . . 1 . . . . . . . . . . . . 3 1 . . . . Robots Melted 36 | . . . . . . . . . . . . . . 1 3 3 . . . . . 3 1 2 . . 2 1 5 1 8 4 2 Combat Hostiles 31 | . . . . . . . . . . . . . . 1 3 2 . . . . . 1 . 2 . . 2 1 5 1 7 4 2 Parts Melted 153 | . . . . . 2 6 3 3 10 . 1 4 8 1 9 5 4 . . 6 . 6 8 6 1 2 4 13 19 3 17 10 2 Heat Transferred 48960 | . . . . . 3764 2672 1646 1510 4448 469 185 500 1850 2450 1650 3616 1372 . 174 1453 . 2148 807 1110 259 2590 925 1739 3126 515 4232 2492 1258 Parts Sabotaged . | . . . . . . . . . . . . . . . . . . . . . . . . . . . . . . . . . . Parts Stolen . | . . . . . . . . . . . . . . . . . . . . . . . . . . . . . . . . . . Parts Stripped . | . . . . . . . . . . . . . . . . . . . . . . . . . . . . . . . . . . Power Chain Reactions . | . . . . . . . . . . . . . . . . . . . . . . . . . . . . . . . . . . Alert | -11 -10 -10 -10 -9 -8 -8 -8 -8 -8 -8 -8 -8 -6 -6 -6 -6 -5 -5 -5 -5 -4 -4 -3 -3 -2 -2 -2 -2 -2 -1 -1 -1 -1 ------- Run | Yrd Mat Min Exi Min Mat Gar Mat Gar Mat Sto Gar Rec Fac Was Fac Gar Fac Was Fac Gar Fac DSF Res Gar Res Gar Res Tes Sec Acc Gar Acc Com Peak Influence 2141 | . 251 . . 60 452 1259 613 986 654 394 968 509 698 121 146 1273 896 352 296 1210 639 489 258 1016 837 1323 841 421 527 323 2141 1878 1389 Initial 1284 | . . . . . . 135 613 93 480 118 201 435 397 121 2 102 667 260 1 104 634 447 243 54 571 612 744 234 236 170 258 1284 1201 Average 469 | . 74 . . 37 275 698 201 676 260 236 667 386 459 71 53 708 755 207 124 703 634 446 114 394 745 872 611 229 349 274 1278 1520 1281 Maximum Alert Level 5 | . 1 . . . 2 4 2 3 2 1 3 2 2 . . 4 3 1 1 4 2 2 1 3 3 4 3 2 2 1 5 5 4 Low Security (%) 27 | 100 96 100 . 100 20 9 65 6 29 39 . . . 100 100 10 . 50 77 10 . . 78 21 . . . 39 14 6 . . . Level 1 30 | . 3 . . . 69 11 23 8 55 60 22 57 32 . . 7 . 49 22 16 . . 21 45 . . 28 52 38 93 6 . . Level 2 19 | . . . . . 10 17 10 37 14 . 20 42 67 . . 38 42 . . 18 100 100 . 23 27 33 13 7 47 . 14 . . Level 3 13 | . . . . . . 50 . 46 . . 57 . . . . 32 57 . . 32 . . . 10 72 54 57 . . . 15 . . Level 4 6 | . . . . . . 10 . . . . . . . . . 9 . . . 22 . . . . . 12 . . . . 32 65 100 Level 5 1 | . . . . . . . . . . . . . . . . . . . . . . . . . . . . . . . 31 5 . High Security . | . . . . . . . . . . . . . . . . . . . . . . . . . . . . . . . . 28 . Max Security . | . . . . . . . . . . . . . . . . . . . . . . . . . . . . . . . . . . Sterilizations 1 | . . . . . . . . . . . . . . . . . . . . . . 1 . . . . . . . . . . . Squads Dispatched 86 | . 2 . . . 3 . 1 . 2 7 . . 2 . 1 . 1 . 2 . . 2 5 . 1 . 6 11 18 2 . 17 3 Investigation 8 | . 2 . . . . . 1 . . 1 . . . . . . . . . . . . 1 . . . . 2 1 . . . . Extermination 17 | . . . . . . . . . . . . . . . 1 . . . . . . . 2 . . . 1 5 6 . . 1 1 Reinforcement 27 | . . . . . 3 . . . 2 1 . . 2 . . . 1 . 2 . . 2 2 . . . 4 2 3 1 . 2 . Assault 21 | . . . . . . . . . . 2 . . . . . . . . . . . . . . . . . . 5 1 . 11 2 Garrison 7 | . . . . . . . . . . 3 . . . . . . . . . . . . . . 1 . 1 2 . . . . . Intercept 6 | . . . . . . . . . . . . . . . . . . . . . . . . . . . . . 3 . . 3 . Searches Triggered 1 | . . . . . . . . . . . . . 1 . . . . . . . . . . . . . . . . . . . . Construction Impeded 3 | . . . . . . . . . . . . . . . . . . . . . . . . . . . 1 . . . . 2 . Haulers Reinforced 3 | . . . . . . . . . . . . . 1 . . . . . . . . . 1 . . . 1 . . . . . . Active Scanning Responses . | . . . . . . . . . . . . . . . . . . . . . . . . . . . . . . . . . . Cargo Convoy Interrupts 1 | . . . . . . . . . . . . . . . . . . . . . . . 1 . . . . . . . . . . Alert ID Control Effect 119 | . . . . . . . . . . . . . . . . . . . . . . 6 17 3 1 12 . 2 41 . 11 12 14 Stealth | -11 -10 -10 -10 -9 -8 -8 -8 -8 -8 -8 -8 -8 -6 -6 -6 -6 -5 -5 -5 -5 -4 -4 -3 -3 -2 -2 -2 -2 -2 -1 -1 -1 -1 --------- Run | Yrd Mat Min Exi Min Mat Gar Mat Gar Mat Sto Gar Rec Fac Was Fac Gar Fac Was Fac Gar Fac DSF Res Gar Res Gar Res Tes Sec Acc Gar Acc Com Distress Signals 35 | . . . . . 7 . 3 . 4 1 . . . . . . . . . . . . 4 1 2 . 4 . 4 . 1 1 3 Communications Jammed 49 | . . . . . . . . . 5 . 37 . 2 . 1 . . . . . . 4 . . . . . . . . . . . Distress Signals 39 | . . . . . . . . . . . 37 . 2 . . . . . . . . . . . . . . . . . . . . Times Spotted 850 | . 21 . . 5 53 21 22 27 43 29 23 2 6 6 10 38 19 5 7 39 . 15 32 31 14 52 26 50 95 12 64 52 31 Peak Tracking Total 17 | . 5 . . 3 8 3 4 3 5 8 8 1 5 1 3 10 4 5 2 5 . 5 8 9 5 13 6 5 15 5 9 17 7 Tactical Retreats 48 | . 1 . . . 8 3 . 2 . 2 1 . 1 . . 1 . . . 4 . . . . 1 1 . 6 5 1 2 7 2 Traps | -11 -10 -10 -10 -9 -8 -8 -8 -8 -8 -8 -8 -8 -6 -6 -6 -6 -5 -5 -5 -5 -4 -4 -3 -3 -2 -2 -2 -2 -2 -1 -1 -1 -1 ------- Run | Yrd Mat Min Exi Min Mat Gar Mat Gar Mat Sto Gar Rec Fac Was Fac Gar Fac Was Fac Gar Fac DSF Res Gar Res Gar Res Tes Sec Acc Gar Acc Com Traps Triggered 59 | . 2 . . . 3 3 2 2 . . . . 1 . . 7 2 . . 1 . 3 . 5 . 9 . 2 3 . 12 1 1 Indirectly . | . . . . . . . . . . . . . . . . . . . . . . . . . . . . . . . . . . Trap Hack Attempts 1 | . . . . . . . . 1 . . . . . . . . . . . . . . . . . . . . . . . . . Triggered . | . . . . . . . . . . . . . . . . . . . . . . . . . . . . . . . . . . Disarmed . | . . . . . . . . . . . . . . . . . . . . . . . . . . . . . . . . . . Reprogrammed 1 | . . . . . . . . 1 . . . . . . . . . . . . . . . . . . . . . . . . . Reused 7 | . . . . . . . . . . 7 . . . . . . . . . . . . . . . . . . . . . . . Traps Reconfigurated 31 | . . . . . . . 4 . 2 21 . . . . . . . . . . . . 4 . . . . . . . . . . Traps Extracted . | . . . . . . . . . . . . . . . . . . . . . . . . . . . . . . . . . . Installed . | . . . . . . . . . . . . . . . . . . . . . . . . . . . . . . . . . . Triggered 9 | . . . . . . . . . . 7 . . . . . . . . . . . . 2 . . . . . . . . . . Machines | -11 -10 -10 -10 -9 -8 -8 -8 -8 -8 -8 -8 -8 -6 -6 -6 -6 -5 -5 -5 -5 -4 -4 -3 -3 -2 -2 -2 -2 -2 -1 -1 -1 -1 ---------- Run | Yrd Mat Min Exi Min Mat Gar Mat Gar Mat Sto Gar Rec Fac Was Fac Gar Fac Was Fac Gar Fac DSF Res Gar Res Gar Res Tes Sec Acc Gar Acc Com Machines Disabled 94 | . . . . . 1 10 1 2 2 7 2 . 5 . 1 6 2 . 2 5 . . 2 7 1 6 . 6 11 1 10 3 1 Max in Single Turn 5 | . . . . . 1 1 1 1 1 1 1 . 5 . 1 1 2 . . 1 . . . 1 . 1 . 1 1 1 1 1 . Garrison Access 3 | . . . . . . . . . . . . . . . . . . . . . . . . . . . 1 1 . 1 . . . Garrison Relay 30 | . . . . . . 3 . 2 . . 2 . . . . 3 . . . 6 . . . 4 . 4 . . . . 6 . . Energy Cycler 1 | . . . . . . . . . . . . . . . . . . . . . . . . . . . . . . . . 1 . Machines Repaired . | . . . . . . . . . . . . . . . . . . . . . . . . . . . . . . . . . . Machines Dismantled . | . . . . . . . . . . . . . . . . . . . . . . . . . . . . . . . . . . Machines Sabotaged . | . . . . . . . . . . . . . . . . . . . . . . . . . . . . . . . . . . Overloaded Fab Kills . | . . . . . . . . . . . . . . . . . . . . . . . . . . . . . . . . . . Hacking | -11 -10 -10 -10 -9 -8 -8 -8 -8 -8 -8 -8 -8 -6 -6 -6 -6 -5 -5 -5 -5 -4 -4 -3 -3 -2 -2 -2 -2 -2 -1 -1 -1 -1 --------- Run | Yrd Mat Min Exi Min Mat Gar Mat Gar Mat Sto Gar Rec Fac Was Fac Gar Fac Was Fac Gar Fac DSF Res Gar Res Gar Res Tes Sec Acc Gar Acc Com Machines Accessed 109 | . 9 . 2 . 8 1 8 4 14 9 2 11 2 . 3 3 1 . 1 2 1 . 5 2 1 . 1 5 10 1 1 . 2 Terminals 84 | . 8 . . . 7 1 7 4 11 8 2 5 2 . 1 3 1 . . 2 1 . 3 2 . . . 3 10 . 1 . 2 Fabricators 3 | . . . . . . . . . . . . . . . 1 . . . . . . . 1 . . . . 1 . . . . . Repair Stations 3 | . 1 . . . . . . . 2 . . . . . . . . . . . . . . . . . . . . . . . . Recycling Units 7 | . . . . . . . . . 1 . . 6 . . . . . . . . . . . . . . . . . . . . . Scanalyzers . | . . . . . . . . . . . . . . . . . . . . . . . . . . . . . . . . . . Garrison Access 10 | . . . . . 1 . 1 . . 1 . . . . 1 . . . 1 . . . 1 . 1 . 1 1 . 1 . . . Total Hacks 266 | . 34 . 2 . 27 3 27 7 38 19 5 16 7 . 6 11 1 . 1 8 3 . 10 6 1 . 1 9 17 2 3 . 2 Successful 123 | . 16 . 2 . 14 1 17 2 19 10 . 13 2 . 3 2 1 . 1 2 1 . 3 1 1 . 1 6 3 2 . . . Failed 142 | . 18 . . . 13 2 9 5 19 9 5 3 5 . 3 9 . . . 6 2 . 7 5 . . . 3 14 . 3 . 2 Catastrophic 27 | . . . . . 1 . 1 2 2 1 1 1 . . 1 2 . . . . . . 3 1 . . . 2 6 . 1 . 2 Database Lockouts 1 | . . . . . . . 1 . . . . . . . . . . . . . . . . . . . . . . . . . . Manual 147 | . 25 . 1 . 16 . 17 . 27 14 . 14 3 . 4 2 . . . 5 . . 4 . . . . 4 9 . . . 2 Terminals 222 | . 30 . . . 25 3 26 7 29 16 5 10 7 . 2 11 1 . . 8 3 . 6 6 . . . 5 17 . 3 . 2 Fabricators 6 | . . . . . . . . . . . . . . . 1 . . . . . . . 2 . . . . 3 . . . . . Repair Stations 12 | . 4 . . . . . . . 8 . . . . . . . . . . . . . . . . . . . . . . . . Recycling Units 7 | . . . . . . . . . 1 . . 6 . . . . . . . . . . . . . . . . . . . . . Scanalyzers . | . . . . . . . . . . . . . . . . . . . . . . . . . . . . . . . . . . Garrison Access 17 | . . . . . 2 . 1 . . 3 . . . . 3 . . . 1 . . . 2 . 1 . 1 1 . 2 . . . Terminal Hacks 48 | . 6 . 2 . 7 1 9 2 5 2 . 1 2 . . 1 1 . . 2 1 . . 1 . . . 2 3 . . . . Record 1 | . . . 1 . . . . . . . . . . . . . . . . . . . . . . . . . . . . . . Robot Schematic 3 | . 1 . . . . . 1 . . . . . 1 . . . . . . . . . . . . . . . . . . . . Robot Analysis 4 | . 2 . . . 1 . . . 1 . . . . . . . . . . . . . . . . . . . . . . . . Prototype ID Bank 6 | . 3 . . . 1 . 1 . . . . 1 . . . . . . . . . . . . . . . . . . . . . Open Door 4 | . . . . . . . . 1 . 1 . . . . . . . . . . . . . . . . . 1 1 . . . . Open DSF 2 | . . . . . . . . . . . . . . . . . 1 . . . 1 . . . . . . . . . . . . Branch Access Points 1 | . . . . . . . 1 . . . . . . . . . . . . . . . . . . . . . . . . . . Emergency Access Points 2 | . . . . . . . . . . . . . . . . 1 . . . 1 . . . . . . . . . . . . . Terminal Index 3 | . . . . . . . 1 . 1 . . . 1 . . . . . . . . . . . . . . . . . . . . Alert Level 3 | . . . . . 3 . . . . . . . . . . . . . . . . . . . . . . . . . . . . Unreport Threat 10 | . . . . . 2 . 3 . 1 1 . . . . . . . . . . . . . . . . . 1 2 . . . . Patrol Status 1 | . . . . . . . 1 . . . . . . . . . . . . . . . . . . . . . . . . . . Recall Investigation 1 | . . . . . . . 1 . . . . . . . . . . . . . . . . . . . . . . . . . . Recall Reinforcements 1 | . . . . . . . . . 1 . . . . . . . . . . . . . . . . . . . . . . . . Hauler Manifests 1 | . . . . . . . . . 1 . . . . . . . . . . . . . . . . . . . . . . . . Garrison Registry 3 | . . . . . . 1 . 1 . . . . . . . . . . . . . . . 1 . . . . . . . . . Security Stations 1 | . . . . . . . . . . . . . . . . . . . . 1 . . . . . . . . . . . . . Derelict Proto ID Bank 1 | . . . 1 . . . . . . . . . . . . . . . . . . . . . . . . . . . . . . Fabricator Hacks 5 | . . . . . . . . . . . . . . . . . . . . . . . 2 . . . . 3 . . . . . Network Status 1 | . . . . . . . . . . . . . . . . . . . . . . . . . . . . 1 . . . . . Load Schematic 2 | . . . . . . . . . . . . . . . . . . . . . . . 1 . . . . 1 . . . . . Build 2 | . . . . . . . . . . . . . . . . . . . . . . . 1 . . . . 1 . . . . . Repair Station Hacks 9 | . 4 . . . . . . . 5 . . . . . . . . . . . . . . . . . . . . . . . . Scan Component 5 | . 2 . . . . . . . 3 . . . . . . . . . . . . . . . . . . . . . . . . Repair 4 | . 2 . . . . . . . 2 . . . . . . . . . . . . . . . . . . . . . . . . Recycling Unit Hacks 1 | . . . . . . . . . 1 . . . . . . . . . . . . . . . . . . . . . . . . Retrieve Components 1 | . . . . . . . . . 1 . . . . . . . . . . . . . . . . . . . . . . . . Scanalyzer . | . . . . . . . . . . . . . . . . . . . . . . . . . . . . . . . . . . Garrison Access Hacks 12 | . . . . . 1 . 1 . . 2 . . . . 1 . . . 1 . . . 1 . 1 . 1 1 . 2 . . . Unlock Access 8 | . . . . . 1 . 1 . . 1 . . . . 1 . . . 1 . . . 1 . 1 . . . . 1 . . . Seal Access 2 | . . . . . . . . . . . . . . . . . . . . . . . . . . . 1 1 . . . . . Coupler Status 2 | . . . . . . . . . . 1 . . . . . . . . . . . . . . . . . . . 1 . . . Unauthorized Hacks 48 | . 6 . . . 6 . 7 . 8 6 . 12 . . 2 1 . . . . . . . . . . . . . . . . . Terminals 40 | . 6 . . . 6 . 7 . 8 5 . 6 . . 1 1 . . . . . . . . . . . . . . . . . Track 1 | . . . . . . . . . 1 . . . . . . . . . . . . . . . . . . . . . . . . Botnet 5 | . 1 . . . 1 . 1 . . . . 1 . . . 1 . . . . . . . . . . . . . . . . . Disrupt 1 | . . . . . . . . . 1 . . . . . . . . . . . . . . . . . . . . . . . . Operators 2 | . . . . . . . 1 . 1 . . . . . . . . . . . . . . . . . . . . . . . . Skim 31 | . 5 . . . 5 . 5 . 5 5 . 5 . . 1 . . . . . . . . . . . . . . . . . . Fabricators . | . . . . . . . . . . . . . . . . . . . . . . . . . . . . . . . . . . Repair Stations . | . . . . . . . . . . . . . . . . . . . . . . . . . . . . . . . . . . Recycling Units 6 | . . . . . . . . . . . . 6 . . . . . . . . . . . . . . . . . . . . . Tunnel 6 | . . . . . . . . . . . . 6 . . . . . . . . . . . . . . . . . . . . . Scanalyzers . | . . . . . . . . . . . . . . . . . . . . . . . . . . . . . . . . . . Garrison Access 2 | . . . . . . . . . . 1 . . . . 1 . . . . . . . . . . . . . . . . . . Restock 1 | . . . . . . . . . . . . . . . 1 . . . . . . . . . . . . . . . . . . Eject 1 | . . . . . . . . . . 1 . . . . . . . . . . . . . . . . . . . . . . . Data Cores Recovered 2 | . 1 . . . . . . . . 1 . . . . . . . . . . . . . . . . . . . . . . . Used 1 | . 1 . . . . . . . . . . . . . . . . . . . . . . . . . . . . . . . . Hacking Detections 82 | . 9 . . . 7 1 8 3 12 6 2 2 2 . 2 2 . . 1 2 . . 4 2 1 . . 3 9 1 1 . 2 Full Trace Events 9 | . . . . . . . . 1 . . 1 . . . . 2 . . . . . . 1 1 . . . 1 1 . 1 . . Feedback Events 2 | . . . . . . . . . . . 1 . . . . . . . . . . . . . . . . . . . 1 . . Corruption 2 | . . . . . . . . . . . 1 . . . . . . . . . . . . . . . . . . . 1 . . Feedback Blocked . | . . . . . . . . . . . . . . . . . . . . . . . . . . . . . . . . . . Robot Schematics Acquired 10 | . 1 . . . . . 1 . . . . . 1 . . . . . . . . . . . . . . 6 1 . . . . Robots Built 1 | . . . . . . . . . . . . . . . . . . . . . . . 1 . . . . . . . . . . Authchips 1 | . . . . . . . . . . . . . . . . . . . . . . . 1 . . . . . . . . . . Time 108 | . . . . . . . . . . . . . . . . . . . . . . . 27 . . . . 81 . . . . . Total Robot Build Rating 1 | . . . . . . . . . . . . . . . . . . . . . . . 1 . . . . . . . . . . Part Schematics Acquired 25 | . . . . . . . . . . . . . . . . . . . . . . . . . . . . 16 9 . . . . Parts Built . | . . . . . . . . . . . . . . . . . . . . . . . . . . . . . . . . . . Authchips . | . . . . . . . . . . . . . . . . . . . . . . . . . . . . . . . . . . Time . | . . . . . . . . . . . . . . . . . . . . . . . . . . . . . . . . . . Total Part Build Rating . | . . . . . . . . . . . . . . . . . . . . . . . . . . . . . . . . . . Parts Repaired 4 | . 2 . . . . . . . 2 . . . . . . . . . . . . . . . . . . . . . . . . Time 164 | . 52 . . . . . . . 112 . . . . . . . . . . . . . . . . . . . . . . . . Parts Recycled . | . . . . . . . . . . . . . . . . . . . . . . . . . . . . . . . . . . Recycled Matter . | . . . . . . . . . . . . . . . . . . . . . . . . . . . . . . . . . . Retrieved Matter . | . . . . . . . . . . . . . . . . . . . . . . . . . . . . . . . . . . Retrieved Components 10 | . . . . . . . . . 10 . . . . . . . . . . . . . . . . . . . . . . . . Parts Scanalyzed . | . . . . . . . . . . . . . . . . . . . . . . . . . . . . . . . . . . Part Schematics Acquired . | . . . . . . . . . . . . . . . . . . . . . . . . . . . . . . . . . . Parts Damaged . | . . . . . . . . . . . . . . . . . . . . . . . . . . . . . . . . . . Bothacking | -11 -10 -10 -10 -9 -8 -8 -8 -8 -8 -8 -8 -8 -6 -6 -6 -6 -5 -5 -5 -5 -4 -4 -3 -3 -2 -2 -2 -2 -2 -1 -1 -1 -1 ------------ Run | Yrd Mat Min Exi Min Mat Gar Mat Gar Mat Sto Gar Rec Fac Was Fac Gar Fac Was Fac Gar Fac DSF Res Gar Res Gar Res Tes Sec Acc Gar Acc Com Used RIF Installer 10 | . . . . . . 2 . 2 . . 1 . . . . 1 . . . 1 . . . 1 . 1 . . . . 1 . . Coupler Efficiency 2 | . . . . . . . . 1 . . . . . . . 1 . . . . . . . . . . . . . . . . . Hotswap 1 | . . . . . . 1 . . . . . . . . . . . . . . . . . . . . . . . . . . . Zone Cloak 1 | . . . . . . . . 1 . . . . . . . . . . . . . . . . . . . . . . . . . Patrol Navigation 1 | . . . . . . . . . . . . . . . . . . . . . . . . . . . . . . . 1 . . Alert ID Control 1 | . . . . . . . . . . . . . . . . . . . . 1 . . . . . . . . . . . . . Program Shield 1 | . . . . . . . . . . . . . . . . . . . . . . . . 1 . . . . . . . . . Autooverride 1 | . . . . . . . . . . . . . . . . . . . . . . . . . . 1 . . . . . . . Autoassimilate 1 | . . . . . . . . . . . 1 . . . . . . . . . . . . . . . . . . . . . . Robots Hacked 209 | . . . . . . . . 5 2 . . . . 6 . 6 9 6 1 . . 4 15 10 3 28 7 23 35 2 16 17 14 Non-combat 23 | . . . . . . . . . 2 . . . . . . . 4 . . . . . 1 1 . . 2 2 3 . . 5 3 Combat 186 | . . . . . . . . 5 . . . . . 6 . 6 5 6 1 . . 4 14 9 3 28 5 21 32 2 16 12 11 Autooverrided 18 | . . . . . . . . . . . . . . . . . . . . . . . . . . 2 . 2 3 . 6 3 2 Autoassimilated 28 | . . . . . . . . . . . . . . . . . 1 . . . . . 2 . . 11 . 1 5 1 2 3 2 Robot Hacks Applied 191 | . . . . . . . . 5 5 . . . . 9 . 6 8 7 1 . . 4 14 12 4 16 11 23 34 1 8 12 11 parse_system 11 | . . . . . . . . . . . . . . 3 . . . . . . . . 1 1 1 . . 2 1 . . 1 1 find_chute 1 | . . . . . . . . . . . . . . . . . 1 . . . . . . . . . . . . . . . . ignore_repairs 1 | . . . . . . . . . . . . . . . . . . . . . . . . . . . . . . . . 1 . drop_inventory 5 | . . . . . . . . . . . . . . . . . 2 . . . . . 1 . . . 1 1 . . . . . purge_threat 10 | . . . . . . . . . 3 . . . . . . . . . . . . . . . . . 4 . 3 . . . . block_reporting 4 | . . . . . . . . . . . . . . . . . . . . . . . . . . . . . 3 . . . 1 map_route 7 | . . . . . . . . . . . . . . . . . . . . . . . . . . . . . . . . 4 3 find_scanalyzer 1 | . . . . . . . . . . . . . . . . . . . . . . . . . . . . 1 . . . . . disable_scanner 15 | . . . . . . . . . . . . . . . . . . . . . . . . . . . . 9 6 . . . . locate_prototypes 4 | . . . . . . . . . . . . . . . . . . . . . . . . . . . . 1 3 . . . . ignore_targets 12 | . . . . . . . . . . . . . . 6 . . . 6 . . . . . . . . . . . . . . . find_garrison 4 | . . . . . . . . . . . . . . . . . . . 1 . . . 1 . 1 . . . . 1 . . . overload_power 2 | . . . . . . . . . . . . . . . . . . 1 . . . . . . . . 1 . . . . . . amplify_resonance 21 | . . . . . . . . . . . . . . . . 1 . . . . . . 3 1 . 7 . 1 5 . 2 1 . reboot_system 2 | . . . . . . . . . . . . . . . . . . . . . . . . . . . . . 1 . . . 1 overwrite_iff 27 | . . . . . . . . 3 . . . . . . . 3 1 . . . . . 3 4 . 2 2 4 2 . 1 1 1 formatsys_low 6 | . . . . . . . . . 2 . . . . . . . 1 . . . . . . . . . 1 1 1 . . . . formatsys_high 57 | . . . . . . . . 2 . . . . . . . 2 3 . . . . 4 5 6 2 7 2 3 9 . 5 4 3 formatsys_deep 1 | . . . . . . . . . . . . . . . . . . . . . . . . . . . . . . . . . 1 Relay Couplers Released 140 | . . . . . . 12 . 9 . 3 9 . . . 4 13 . . . 26 . . . 18 . 18 2 1 . 4 21 . . Ejected 3 | . . . . . . . . . . 3 . . . . . . . . . . . . . . . . . . . . . . . Machine Destruction 129 | . . . . . . 12 . 9 . . 9 . . . . 9 . . . 26 . . . 18 . 18 2 1 . 4 21 . . Programmers 8 | . . . . . . . . . . . . . . . 4 4 . . . . . . . . . . . . . . . . . Attached 45 | . . . . . . 1 . 2 2 . . . . 1 . 2 1 . 1 1 . 2 5 1 1 3 2 3 4 . 5 8 . Fabnet Peak Effective % . | . . . . . . . . . . . . . . . . . . . . . . . . . . . . . . . . . . Robots Rewired 23 | . . . . . . 3 . . . . . . . . . 3 . . . . . . . 1 . 3 . 1 . . 12 . . Allies Hacked 2 | . . . . . . . . . . . . . . . . . . . 1 1 . . . . . . . . . . . . . Hacks Repelled . | . . . . . . . . . . . . . . . . . . . . . . . . . . . . . . . . . . Allies | -11 -10 -10 -10 -9 -8 -8 -8 -8 -8 -8 -8 -8 -6 -6 -6 -6 -5 -5 -5 -5 -4 -4 -3 -3 -2 -2 -2 -2 -2 -1 -1 -1 -1 -------- Run | Yrd Mat Min Exi Min Mat Gar Mat Gar Mat Sto Gar Rec Fac Was Fac Gar Fac Was Fac Gar Fac DSF Res Gar Res Gar Res Tes Sec Acc Gar Acc Com Total Allies 190 | . . 1 . . . 3 . 7 2 2 . . . . . 10 6 18 . . . 4 11 13 2 27 5 12 20 1 26 10 10 Largest Group 18 | . . 1 1 . . 2 3 2 1 2 . . . . . 5 2 18 12 8 . 4 4 4 3 10 7 4 5 1 8 6 3 Highest-Rated Group 638 | . . 31 31 . . 32 48 59 26 62 . . . . . 271 58 638 463 317 . 206 250 370 323 554 428 364 638 51 625 421 457 Highest-Rated Ally 343 | . . 31 31 . . 16 16 39 26 31 . . . . . 95 29 50 50 50 . 56 116 148 148 80 80 343 343 51 219 219 219 Total Orders 23 | . . . . . . . . 2 3 . . . . . . . 2 . 3 1 1 . 1 . . . . 1 7 . 2 . . STAY 7 | . . . . . . . . 1 1 . . . . . . . . . . . . . . . . . . . 4 . 1 . . ROAM 1 | . . . . . . . . . . . . . . . . . . . . . . . . . . . . . . . 1 . . FOLLOW 5 | . . . . . . . . 1 1 . . . . . . . . . . . . . . . . . . . 3 . . . . AID 4 | . . . . . . . . . 1 . . . . . . . 1 . . . . . 1 . . . . 1 . . . . . EXPLORE 3 | . . . . . . . . . . . . . . . . . 1 . 2 . . . . . . . . . . . . . . RETURN 3 | . . . . . . . . . . . . . . . . . . . 1 1 1 . . . . . . . . . . . . Ally Attacks 1167 | . . . . . . . 19 43 14 15 . . . . . 70 26 105 30 31 . 15 64 53 42 118 29 50 183 . 126 79 55 Total Damage 44540 | . . . . . . . 251 591 174 167 . . . . . 2143 343 4601 1170 820 . 336 2424 1979 1528 3700 1256 2727 8037 . 5514 2731 4048 Kills 220 | . . . . . . . 2 10 1 1 . . . . . 13 2 12 7 4 . 5 17 9 7 18 1 15 42 . 23 15 16 Allies Corrupted 11 | . . . . . . . . . . . . . . . . . . . . 2 . . 1 1 1 . . 1 2 . 1 2 . Allies Melted 5 | . . . . . . . . . . . . . . . . . . . . . . . 1 . . 2 . . 2 . . . . Intel | -11 -10 -10 -10 -9 -8 -8 -8 -8 -8 -8 -8 -8 -6 -6 -6 -6 -5 -5 -5 -5 -4 -4 -3 -3 -2 -2 -2 -2 -2 -1 -1 -1 -1 ------- Run | Yrd Mat Min Exi Min Mat Gar Mat Gar Mat Sto Gar Rec Fac Was Fac Gar Fac Was Fac Gar Fac DSF Res Gar Res Gar Res Tes Sec Acc Gar Acc Com Robot Analysis Total 4 | . 2 . . . 1 . . . 1 . . . . . . . . . . . . . . . . . . . . . . . . Derelict Logs Recovered . | . . . . . . . . . . . . . . . . . . . . . . . . . . . . . . . . . . Drone Launches 9 | . . . . . . . . . . . . . . . . . 3 . 3 . 3 . . . . . . . . . . . . Drone Recoveries 9 | . . . . . . . . . . . . . . . . . 3 . 2 1 3 . . . . . . . . . . . . Exploration | -11 -10 -10 -10 -9 -8 -8 -8 -8 -8 -8 -8 -8 -6 -6 -6 -6 -5 -5 -5 -5 -4 -4 -3 -3 -2 -2 -2 -2 -2 -1 -1 -1 -1 ------------- Run | Yrd Mat Min Exi Min Mat Gar Mat Gar Mat Sto Gar Rec Fac Was Fac Gar Fac Was Fac Gar Fac DSF Res Gar Res Gar Res Tes Sec Acc Gar Acc Com Turns Passed 43750 | 80 1256 255 491 620 3292 1619 1738 1764 3467 2212 1633 1290 471 640 540 1998 680 809 552 1042 13 601 1899 1524 292 1800 731 3067 3157 356 2107 933 821 Spaces Moved 17837 | 47 561 159 305 191 1051 642 847 920 1707 932 855 544 233 290 271 768 214 183 218 323 5 112 686 499 106 649 227 1192 1471 137 753 369 370 Core 9 | 6 . . . . . . . . . . . . . . . . . . . . . 3 . . . . . . . . . . . Treads 17828 | 41 561 159 305 191 1051 642 847 920 1707 932 855 544 233 290 271 768 214 183 218 323 5 109 686 499 106 649 227 1192 1471 137 753 369 370 Legs . | . . . . . . . . . . . . . . . . . . . . . . . . . . . . . . . . . . Wheels . | . . . . . . . . . . . . . . . . . . . . . . . . . . . . . . . . . . Hover . | . . . . . . . . . . . . . . . . . . . . . . . . . . . . . . . . . . Flight . | . . . . . . . . . . . . . . . . . . . . . . . . . . . . . . . . . . Fastest Speed 50 | 50 160 160 160 160 160 158 165 160 165 170 170 170 166 160 160 160 240 240 240 240 160 160 250 241 241 241 241 141 141 223 215 151 146 Average Speed 198 | 145 162 160 160 160 231 216 165 161 171 170 172 227 166 170 160 209 240 240 240 240 160 316 250 244 241 241 241 226 173 224 223 199 186 Slowest Speed 2600 | 160 240 160 160 160 240 235 165 165 250 170 250 250 166 240 160 240 240 240 240 240 160 2600 250 250 241 241 241 241 232 232 232 227 235 Overloaded Moves . | . . . . . . . . . . . . . . . . . . . . . . . . . . . . . . . . . . Propulsion Burnouts . | . . . . . . . . . . . . . . . . . . . . . . . . . . . . . . . . . . Robots Hopped . | . . . . . . . . . . . . . . . . . . . . . . . . . . . . . . . . . . Cave-ins Triggered . | . . . . . . . . . . . . . . . . . . . . . . . . . . . . . . . . . . Exploration Rate (%) 53 | 4 94 43 65 39 82 65 73 86 96 88 75 94 7 85 12 83 10 89 12 49 1 95 16 65 6 78 8 93 67 6 83 16 22 Regions Visited 33 Branch Regions 8 Pre-discovered Areas 20 | . 4 . 1 1 . . 2 . 1 3 . 8 . . . . . . . . . . . . . . . . . . . . . Known Exits Taken 12 | . . . . . 1 . 1 . 1 1 . 1 . . 1 . . . 1 . 1 . 1 . 1 . 1 . . 1 . . . Unknown Exits Taken 8 | 1 1 1 1 1 . . . . . . . . . . . . . . . . . . . . . . . 1 1 . . 1 . Scrap Searched 1 | . . 1 . . . . . . . . . . . . . . . . . . . . . . . . . . . . . . . Spaces Dug 61 | . . . . . . . 6 8 1 10 . . 6 . . 4 . . . . . . . 1 1 8 2 2 2 . 6 4 . Terrain Destroyed 614 | . . . . . 22 41 27 13 36 43 18 2 37 4 8 37 19 . 1 148 . 1 3 11 1 21 13 22 23 1 24 34 4 Melee 6 | . . . . . . . . 6 . . . . . . . . . . . . . . . . . . . . . . . . . Projectile 279 | . . . . . 22 . 27 2 22 14 . 2 8 4 8 8 5 . 1 9 . 1 3 11 1 21 13 22 23 1 24 23 4 AOE 329 | . . . . . . 41 . 5 14 29 18 . 29 . . 29 14 . . 139 . . . . . . . . . . . 11 . Terrain Rammed . | . . . . . . . . . . . . . . . . . . . . . . . . . . . . . . . . . . Walls Destroyed . | . . . . . . . . . . . . . . . . . . . . . . . . . . . . . . . . . . Machines Disabled . | . . . . . . . . . . . . . . . . . . . . . . . . . . . . . . . . . . Actions | -11 -10 -10 -10 -9 -8 -8 -8 -8 -8 -8 -8 -8 -6 -6 -6 -6 -5 -5 -5 -5 -4 -4 -3 -3 -2 -2 -2 -2 -2 -1 -1 -1 -1 --------- Run | Yrd Mat Min Exi Min Mat Gar Mat Gar Mat Sto Gar Rec Fac Was Fac Gar Fac Was Fac Gar Fac DSF Res Gar Res Gar Res Tes Sec Acc Gar Acc Com Total 24482 | 55 796 159 308 472 1710 794 1117 1108 2063 1445 948 577 277 381 335 1000 318 551 236 482 10 304 825 736 136 889 403 1563 2069 184 1172 559 500 Wait 3261 | . 161 . . 259 461 21 201 78 176 402 12 12 12 18 35 72 48 357 2 42 4 123 49 103 4 37 51 149 211 14 75 28 44 Move 17811 | 46 560 158 304 190 1051 641 847 919 1706 932 854 543 233 289 270 767 214 182 218 322 4 111 686 498 106 647 226 1191 1470 137 752 368 369 Hop . | . . . . . . . . . . . . . . . . . . . . . . . . . . . . . . . . . . Pick Up 248 | 2 6 . 4 1 13 12 4 8 9 4 7 2 3 6 3 14 6 2 5 16 . 6 8 16 1 14 10 10 23 3 23 . 7 Fast Attach 123 | 6 6 . . . 14 4 . 3 10 3 2 . . 7 . 4 3 . . 2 . 9 4 3 . 1 4 16 9 . 4 7 2 Attach 112 | . 1 . . 3 7 3 . 5 9 1 . 2 4 . 2 7 2 . . . 2 6 5 . 3 2 2 4 9 6 9 15 3 Detach 47 | . 2 . . . 5 3 . 2 2 . . . 1 2 1 5 1 . . . . 2 1 1 2 2 . 3 4 . 3 3 2 Swap 245 | . 1 . . . 16 14 13 13 16 16 9 1 1 9 . 14 2 2 2 5 . 3 14 13 1 12 15 13 21 . 10 7 2 Drop 215 | . 1 . . 1 11 18 10 6 9 6 8 2 2 11 1 6 3 1 2 16 . 4 9 16 1 9 11 25 18 . 6 2 . Fire 2145 | . 50 . . 18 123 63 39 52 104 78 55 13 21 28 22 99 34 7 6 75 . 34 42 62 14 145 83 150 297 23 213 126 69 Melee 35 | . . . . . . . . 19 5 . . . . 11 . . . . . . . . . . . . . . . . . . . Ram . | . . . . . . . . . . . . . . . . . . . . . . . . . . . . . . . . . . Kick . | . . . . . . . . . . . . . . . . . . . . . . . . . . . . . . . . . . Crush 74 | 1 8 1 . . 9 . 3 . 15 3 . 2 . . 1 . 3 . . 2 . . 7 1 4 . 1 2 6 1 3 1 . Escape Stasis 71 | . . . . . . 4 . . . . . . . . . 10 . . . 2 . 6 . 10 . 18 . . . . 19 . 2 Rewire 94 | . . . . . . 11 . 2 2 . 1 . . . . 2 2 . 1 . . . . 13 . 2 . . 1 . 55 2 . Trap 1 | . . . . . . . . 1 . . . . . . . . . . . . . . . . . . . . . . . . . Miscellaneous . | . . . . . . . . . . . . . . . . . . . . . . . . . . . . . . . . . . Route ------- -11/Scrapyard -10/Materials (discovered 5 exits: *Mat x3 / [*Min] / Sub) -10/Mines (discovered 2 exits: *Mat / *Exi) -10/Exiles -9/Mines -8/Materials (discovered 5 exits: *Fac x3 / *Sto / Gar) -8/Garrison (discovered 4 exits: Fac x3 / *Mat) -8/Materials (discovered 5 exits: *Fac x2 / *Sto x2 / Gar) -8/Garrison (discovered 4 exits: *Fac x3 / *Mat) -8/Materials (discovered 5 exits: *Fac x3 / *Sto x2) -8/Storage (discovered 3 exits: *Fac / Rec / Gar) -8/Garrison (discovered 3 exits: *Rec x3) -8/Recycling (discovered 2 exits: *Fac / Scr) -6/Factory (discovered 8 exits: Fac x4 / Low x2 / Ext x2) -6/Waste -6/Factory -6/Garrison (discovered 3 exits: *Fac x3) -5/Factory -5/Waste -5/Factory (discovered 2 exits: [*Upp] / Gar) -5/Garrison -4/Factory -4/DSF -3/Research (discovered 2 exits: *Res / Gar) -3/Garrison (discovered 3 exits: *Res x3) -2/Research (discovered 2 exits: *Acc / Gar) -2/Garrison (discovered 4 exits: *Res x4) -2/Research -2/Testing (discovered 2 exits: *Acc / *Sec) -2/Section 7 -1/Access -1/Garrison (discovered 3 exits: [*Acc x3]) -1/Access -1/Command To Epsilon Eridani History --------- Turn | Location | Event 9 | -11/Scrapyard | Discovered new exit (range 16) 81 | -11/Scrapyard | Entered Materials 209 | -10/Materials | Discovered new exit (range 16) 271 | -10/Materials | Core integrity fell below 50% 306 | -10/Materials | Build established: Mutant 759 | -10/Materials | Discovered new exit (range 3) 809 | -10/Materials | Repaired Assault Rifle 837 | -10/Materials | Repaired Assault Rifle 1024 | -10/Materials | Learned location of Recycling (-8) 1086 | -10/Materials | Identified exit to Subcaves 1086 | -10/Materials | Identified exit to Materials 1137 | -10/Materials | Learned location of Subcaves (-10) 1174 | -10/Materials | Discovered new exit (range 14) 1178 | -10/Materials | Learned 4 Subcaves zone layouts 1281 | -10/Materials | Derelicts attacked the area 1304 | -10/Materials | Learned location of 2 exits from Materials 1337 | -10/Materials | Entered Mines 1337 | -10/Mines | Discovered exit to Materials (range 11) 1408 | -10/Mines | Received a Mining Laser from a helpful Derelict 1584 | -10/Mines | Deemed a non-threat by the Exiles lab entrance 1585 | -10/Mines | Discovered new exit (range 5) 1592 | -10/Mines | Entered Exiles 1592 | -10/Exiles | Accompanied by 1 ally 1632 | -10/Exiles | Met 8R-AWN 1655 | -10/Exiles | Met EX-HEX 1833 | -10/Exiles | Met EX-BIN 1859 | -10/Exiles | Aligned with FarCom system 1861 | -10/Exiles | Given EX-Vault access code 1901 | -10/Exiles | Opened EX-Vault 1910 | -10/Exiles | Found Trap Reconfigurator 1914 | -10/Exiles | Found Gui. Plasma Cannon 1920 | -10/Exiles | Found Superbattery 1955 | -10/Exiles | Warned to stay clear of 0b10 Research branches 1969 | -10/Exiles | Exiles lab attacked by MAIN.C 2011 | -10/Exiles | Learned location of Zion (-7) 2068 | -10/Exiles | Discovered new exit (range 11) 2083 | -10/Exiles | Stole three prototypes: Superbattery, Trap Reconfigurator, Gui. Plasma Cannon 2083 | -10/Exiles | Entered Mines 2167 | -9/Mines | A weapon hastily lodged in a ceiling crevice suddenly fell to the ground 2256 | -9/Mines | Assembled infested the area 2261 | -9/Mines | Assisted by a Guerilla fighting off Assembled 2623 | -9/Mines | Core integrity fell below 20% 2694 | -9/Mines | Learned location of Storage (-8) 2696 | -9/Mines | Discovered new exit (range 4) 2703 | -9/Mines | Entered Materials 2703 | -8/Materials | Evolved 4 slots: Propulsion x1, Utility x3 2704 | -8/Materials | Identified exit to Factory 2704 | -8/Materials | Identified exit to Storage 2825 | -8/Materials | Lost 3 parts (1p2w) 3187 | -8/Materials | Build established: Scavenger-Mutant 3194 | -8/Materials | Discovered exit to Factory (range 14) 5630 | -8/Materials | Learned 4 Lower Caves zone layouts 5741 | -8/Materials | Learned 4 Recycling zone layouts 5782 | -8/Materials | Learned Factory trap positions 5811 | -8/Materials | Learned 12 Factory zone layouts 5832 | -8/Materials | Learned 8 Factory zone layouts 5864 | -8/Materials | Learned location of 2 exits from Lower Caves 5990 | -8/Materials | Identified exit to Garrison 5995 | -8/Materials | Entered Garrison 6091 | -8/Garrison | Triggered checkpoint 6201 | -8/Garrison | Installed Relay Interface Framework 6321 | -8/Garrison | Triggered checkpoint 6326 | -8/Garrison | Triggered checkpoint 6341 | -8/Garrison | Triggered checkpoint 6371 | -8/Garrison | Destroyed 10 combat bots 6405 | -8/Garrison | Build established: Mutant 6546 | -8/Garrison | Triggered checkpoint 6606 | -8/Garrison | Discovered exit to Factory (range 31) 6606 | -8/Garrison | Discovered exit to Factory (range 18) 6606 | -8/Garrison | Discovered exit to Factory (range 66) 6606 | -8/Garrison | Discovered new exit (range 63) 6623 | -8/Garrison | Garrison Relay disabled 6701 | -8/Garrison | Garrison Relay disabled 6935 | -8/Garrison | Build established: Bothacker-Mutant 7058 | -8/Garrison | Expanded RIF knowledge: Hotswap 7091 | -8/Garrison | Garrison Relay disabled 7504 | -8/Garrison | Triggered checkpoint 7572 | -8/Garrison | Triggered checkpoint 7614 | -8/Garrison | Entered Materials 7614 | -8/Materials | Accompanied by 3 allies 8291 | -8/Materials | Discovered exit to Factory (range 15) 8403 | -8/Materials | Central database locked down 9005 | -8/Materials | Learned 12 Factory zone layouts 9037 | -8/Materials | Learned location of 1 exit from Lower Caves 9077 | -8/Materials | Learned 4 Recycling zone layouts 9083 | -8/Materials | Learned Storage trap positions 9097 | -8/Materials | Learned location of 1 exit from Lower Caves 9123 | -8/Materials | Learned Recycling recycling unit intel 9352 | -8/Materials | Identified exit to Garrison 9352 | -8/Materials | Entered Garrison 9404 | -8/Garrison | Triggered checkpoint 9552 | -8/Garrison | Rescued a captive Derelict 9558 | -8/Garrison | Rescued a captive Derelict 9620 | -8/Garrison | Triggered checkpoint 9678 | -8/Garrison | Triggered checkpoint 9696 | -8/Garrison | Triggered checkpoint 9860 | -8/Garrison | Triggered checkpoint 9862 | -8/Garrison | Discovered exit to Factory (range 15) 9956 | -8/Garrison | P-60 Hacker assimilated allied Soldier 3a 10014 | -8/Garrison | Lost 3 parts (3u) 10104 | -8/Garrison | Expanded RIF knowledge: Zone Cloak 10270 | -8/Garrison | Triggered checkpoint 10350 | -8/Garrison | Garrison Relay disabled 10398 | -8/Garrison | Expanded RIF knowledge: Coupler Efficiency 10449 | -8/Garrison | Discovered exit to Factory (range 12) 10576 | -8/Garrison | Triggered checkpoint 10612 | -8/Garrison | Discovered new exit (range 5) 10687 | -8/Garrison | Garrison Relay disabled 10741 | -8/Garrison | Discovered exit to Factory (range 12) 10751 | -8/Garrison | Discovered exit to Factory (range 90) 10751 | -8/Garrison | Discovered exit to Factory (range 11) 10751 | -8/Garrison | Discovered exit to Factory (range 69) 10751 | -8/Garrison | Discovered new exit (range 21) 11116 | -8/Garrison | Entered Materials 11116 | -8/Materials | Accompanied by 1 ally 11173 | -8/Materials | Gui. Plasma Cannon suddenly broke down 11291 | -8/Materials | Discovered exit to Storage (range 14) 11714 | -8/Materials | Gui. Plasma Cannon suddenly broke down 12020 | -8/Materials | Discovered exit to Factory (range 6) 12086 | -8/Materials | Learned Factory emergency access door positions 12208 | -8/Materials | Learned 4 Factory zone layouts 12230 | -8/Materials | Core integrity fell below 50% 12285 | -8/Materials | Learned location of 1 exit from Storage 12327 | -8/Materials | Learned Storage emergency access door positions 12344 | -8/Materials | Repaired Hvy. Treads 12379 | -8/Materials | Learned location of 1 exit from Extension 12442 | -8/Materials | Learned Factory repair station intel 14002 | -8/Materials | Repaired Arm. Medium Treads? 14442 | -8/Materials | Build established: Mutant 14583 | -8/Materials | Entered Storage 14583 | -8/Storage | Accompanied by 1 ally 14584 | -8/Storage | Identified exit to Recycling 14585 | -8/Storage | Loaded intel: 26 trap records 15281 | -8/Storage | Garrison activated, responded to threat 15705 | -8/Storage | Discovered exit to Factory (range 16) 15966 | -8/Storage | Met a pair of Derelict thieves 16326 | -8/Storage | Learned 2 Lower Caves zone layouts 16479 | -8/Storage | Learned location of 2 exits from Lower Caves 16511 | -8/Storage | Learned location of 2 exits from Factory 16565 | -8/Storage | Learned Factory stockpile data 16606 | -8/Storage | Learned location of 3 exits from Factory 16655 | -8/Storage | Learned location of 1 exit from Recycling 16795 | -8/Storage | Identified exit to Garrison 16795 | -8/Storage | Entered Garrison 16837 | -8/Garrison | Expanded RIF knowledge: Autoassimilate 16985 | -8/Garrison | Triggered checkpoint 17048 | -8/Garrison | Garrison Relay disabled 17103 | -8/Garrison | Triggered checkpoint 17198 | -8/Garrison | Triggered checkpoint 17235 | -8/Garrison | Destroyed 14 combat bots 17367 | -8/Garrison | Build established: Bothacker-Mutant 17368 | -8/Garrison | Discovered exit to Recycling (range 10) 17641 | -8/Garrison | Discovered exit to Recycling (range 10) 17896 | -8/Garrison | Discovered exit to Recycling (range 15) 17941 | -8/Garrison | Triggered checkpoint 17980 | -8/Garrison | Garrison Relay disabled 18428 | -8/Garrison | Entered Recycling 18429 | -8/Recycling | Identified exit to Scraptown 18430 | -8/Recycling | Identified exit to Factory 18431 | -8/Recycling | Loaded intel: 6 recycling unit locations 19363 | -8/Recycling | Scanned before Scraplab entrance 19371 | -8/Recycling | Learned Factory stockpile data 19422 | -8/Recycling | Learned Factory emergency access door positions 19463 | -8/Recycling | Learned 4 Factory zone layouts 19718 | -8/Recycling | Entered Factory 19718 | -6/Factory | Evolved 4 slots: Power x1, Propulsion x1, Utility x2 19719 | -6/Factory | Identified exit to Lower Caves 19720 | -6/Factory | Identified exit to Factory 19720 | -6/Factory | Identified exit to Extension 19720 | -6/Factory | FarCom data flow suspended 19722 | -6/Factory | Loaded intel: 100 trap records 19725 | -6/Factory | Loaded intel: 6 repair station locations 20068 | -6/Factory | Search patrols dispatched 20189 | -6/Factory | Sucked down chute 20189 | -6/Factory | Entered Waste 20216 | -6/Waste | Spotted C-40 Crusher 20234 | -6/Waste | Crushed by Compactor (0 parts destroyed, 2 dropped) 20247 | -6/Waste | Spotted C-40 Crusher 20254 | -6/Waste | Crushed by Compactor (0 parts destroyed, 1 dropped) 20278 | -6/Waste | Spotted C-40 Crusher 20300 | -6/Waste | Spotted C-40 Crusher 20313 | -6/Waste | Spotted C-40 Crusher 20554 | -6/Waste | Destroyed C-40 Crusher 20608 | -6/Waste | Destroyed C-40 Crusher 20625 | -6/Waste | Spotted C-40 Crusher 20660 | -6/Waste | Destroyed C-40 Crusher 20710 | -6/Waste | Discovered new exit (range 13) 20730 | -6/Waste | Destroyed C-40 Crusher 20829 | -6/Waste | Entered Factory 21323 | -6/Factory | Identified exit to Garrison 21369 | -6/Factory | Entered Garrison 21398 | -6/Garrison | Expanded RIF knowledge: Coupler Efficiency 21561 | -6/Garrison | Triggered checkpoint 21565 | -6/Garrison | Triggered checkpoint 21571 | -6/Garrison | Triggered checkpoint 21621 | -6/Garrison | Destroyed 8 combat bots 21621 | -6/Garrison | Lost 3 allies 21696 | -6/Garrison | Build established: Botlord-Mutant 21707 | -6/Garrison | Triggered checkpoint 21736 | -6/Garrison | Garrison Relay disabled 21903 | -6/Garrison | Discovered exit to Factory (range 8) 22385 | -6/Garrison | Spotted B-75 Beast 22407 | -6/Garrison | Allies destroyed B-75 Beast 22599 | -6/Garrison | Discovered exit to Factory (range 4) 22640 | -6/Garrison | Found embedded Infiltrators 22670 | -6/Garrison | Garrison Relay disabled 22787 | -6/Garrison | Lost 4 allies 22993 | -6/Garrison | Discovered exit to Factory (range 9) 23047 | -6/Garrison | Spotted B-75 Beast 23063 | -6/Garrison | Destroyed B-75 Beast 23108 | -6/Garrison | Found Relay Coupler [Proto] 23211 | -6/Garrison | Triggered checkpoint 23251 | -6/Garrison | Garrison Relay disabled 23367 | -6/Garrison | Entered Factory 23367 | -5/Factory | Evolved 2 slots: Utility x2 24047 | -5/Factory | Sucked down chute 24047 | -5/Factory | Entered Waste 24091 | -5/Waste | Spotted C-40 Crusher 24094 | -5/Waste | Spotted C-40 Crusher 24099 | -5/Waste | Spotted C-40 Crusher 24101 | -5/Waste | Spotted C-40 Crusher 24107 | -5/Waste | Spotted C-40 Crusher 24199 | -5/Waste | Spotted C-40 Crusher 24301 | -5/Waste | Warlord forces began an assault 24388 | -5/Waste | Allies destroyed C-40 Crusher 24391 | -5/Waste | Allies destroyed C-40 Crusher 24402 | -5/Waste | Allies destroyed C-40 Crusher 24415 | -5/Waste | Allies destroyed C-40 Crusher 24430 | -5/Waste | Allies destroyed C-40 Crusher 24437 | -5/Waste | Allies destroyed C-40 Crusher 24468 | -5/Waste | Lost 5 allies 24492 | -5/Waste | Discovered new exit (range 11) 24856 | -5/Waste | Entered Factory 24856 | -5/Factory | Accompanied by 12 allies 24964 | -5/Factory | Spotted B-75 Beast 24969 | -5/Factory | Allies destroyed B-75 Beast 25158 | -5/Factory | Lost 3 allies 25208 | -5/Factory | Discovered new exit (range 27) 25408 | -5/Factory | Identified exit to Garrison 25408 | -5/Factory | Entered Garrison 25408 | -5/Garrison | Accompanied by 9 allies 25474 | -5/Garrison | Learned Factory security intel 25476 | -5/Garrison | Triggered checkpoint 25664 | -5/Garrison | Assembled breached garrison interior 25683 | -5/Garrison | Garrison Relay disabled 25826 | -5/Garrison | Garrison Relay disabled 25873 | -5/Garrison | Garrison Relay disabled 25881 | -5/Garrison | Garrison Relay disabled 25895 | -5/Garrison | P-70 Sage assimilated allied 7F-8AE(g) 26131 | -5/Garrison | Destroyed 14 combat bots 26240 | -5/Garrison | Destroyed 7 combat bots 26333 | -5/Garrison | Expanded RIF knowledge: Alert ID Control 26400 | -5/Garrison | Discovered new exit (range 10) 26450 | -5/Garrison | Entered Factory 26450 | -4/Factory | Evolved 2 slots: Propulsion x2 26462 | -4/Factory | Identified exit to DSF 26463 | -4/Factory | Entered DSF 26622 | -4/DSF | Additional patrols routed to DSF 26710 | -4/DSF | Lost 7 parts (2p2n2u1w) 26806 | -4/DSF | Lost 7 parts (1p1n5u) 26858 | -4/DSF | Sterilization system engaged 26878 | -4/DSF | Ambient heat levels rising (+10) 26893 | -4/DSF | Ambient heat levels rising (+10) 26908 | -4/DSF | Ambient heat levels rising (+10) 26923 | -4/DSF | Ambient heat levels rising (+10) 26938 | -4/DSF | Ambient heat levels rising (+10) 26953 | -4/DSF | Ambient heat levels rising (+10) 26968 | -4/DSF | Ambient heat levels rising (+10) 26983 | -4/DSF | Ambient heat levels rising (+10) 26983 | -4/DSF | Discovered new exit (range 15) 26998 | -4/DSF | Ambient heat levels rising (+10) 27013 | -4/DSF | Ambient heat levels rising (+10) 27028 | -4/DSF | Ambient heat levels rising (+10) 27043 | -4/DSF | Ambient heat levels rising (+10) 27044 | -4/DSF | Lost 4 allies 27058 | -4/DSF | Ambient heat levels rising (+10) 27064 | -4/DSF | Entered Research 27064 | -3/Research | Evolved 2 slots: Utility x2 27379 | -3/Research | Spotted B-86 Titan 27390 | -3/Research | Assimilated Titan 8a with formatsys_high 27431 | -3/Research | Fabricated M-13 Machinist (x1) 28020 | -3/Research | Cargo convoy interrupted 28371 | -3/Research | Discovered new exit (range 16) 28436 | -3/Research | Lost 7 allies 28522 | -3/Research | Found Prototype Device 28522 | -3/Research | Identified Thermal Barrier 28963 | -3/Research | Identified exit to Garrison 28963 | -3/Research | Entered Garrison 29053 | -3/Garrison | Triggered checkpoint 29075 | -3/Garrison | Garrison Relay disabled 29239 | -3/Garrison | Triggered checkpoint 29253 | -3/Garrison | Spotted B-86 Titan 29310 | -3/Garrison | Lost 4 allies 29410 | -3/Garrison | Triggered checkpoint 29414 | -3/Garrison | Triggered checkpoint 29760 | -3/Garrison | Discovered new exit (range 12) 29817 | -3/Garrison | Rewired B-90 Cyclops 29838 | -3/Garrison | Found Quantum Capacitor 29957 | -3/Garrison | Triggered checkpoint 30014 | -3/Garrison | Expanded RIF knowledge: Program Shield 30035 | -3/Garrison | Found embedded Infiltrators 30053 | -3/Garrison | Garrison Relay disabled 30107 | -3/Garrison | Garrison Relay disabled 30364 | -3/Garrison | Discovered new exit (range 65) 30364 | -3/Garrison | Discovered new exit (range 23) 30364 | -3/Garrison | Discovered new exit (range 33) 30373 | -3/Garrison | Triggered checkpoint 30400 | -3/Garrison | Garrison Relay disabled 30487 | -3/Garrison | Entered Research 30487 | -2/Research | Accompanied by 3 allies 30487 | -2/Research | Evolved 2 slots: Power x1, Utility x1 30640 | -2/Research | Discovered new exit (range 16) 30749 | -2/Research | Spotted B-90 Cyclops 30767 | -2/Research | Garrison activated, responded to threat 30779 | -2/Research | Identified exit to Garrison 30779 | -2/Research | Entered Garrison 30779 | -2/Garrison | Accompanied by 1 ally 30813 | -2/Garrison | Triggered checkpoint 30829 | -2/Garrison | Garrison Relay disabled 30917 | -2/Garrison | Expanded RIF knowledge: Autooverride 31065 | -2/Garrison | Triggered checkpoint 31090 | -2/Garrison | Discovered new exit (range 5) 31189 | -2/Garrison | Lost 3 allies 31264 | -2/Garrison | Spotted B-90 Cyclops 31275 | -2/Garrison | Triggered checkpoint 31285 | -2/Garrison | Allies destroyed B-90 Cyclops 31309 | -2/Garrison | Lost 6 allies 31314 | -2/Garrison | Found Relay Coupler [Proto] 31317 | -2/Garrison | Found Relay Coupler [Proto] 31321 | -2/Garrison | Found Relay Coupler [Proto] 31443 | -2/Garrison | Spotted B-90 Cyclops 31455 | -2/Garrison | Triggered checkpoint 31490 | -2/Garrison | Destroyed B-90 Cyclops 31534 | -2/Garrison | Triggered checkpoint 31563 | -2/Garrison | Triggered checkpoint 31578 | -2/Garrison | Lost 4 allies 31607 | -2/Garrison | Triggered checkpoint 31648 | -2/Garrison | Garrison Relay disabled 31792 | -2/Garrison | Discovered new exit (range 10) 32003 | -2/Garrison | Discovered new exit (range 9) 32024 | -2/Garrison | Found embedded Infiltrators 32025 | -2/Garrison | Triggered checkpoint 32092 | -2/Garrison | Garrison Relay disabled 32346 | -2/Garrison | Garrison Relay disabled 32361 | -2/Garrison | Triggered checkpoint 32488 | -2/Garrison | Discovered new exit (range 3) 32579 | -2/Garrison | Entered Research 32579 | -2/Research | Accompanied by 7 allies 32647 | -2/Research | Spotted B-90 Cyclops 32685 | -2/Research | Destroyed B-90 Cyclops 32703 | -2/Research | Lost 9 allies 33162 | -2/Research | Discovered new exit (range 12) 33306 | -2/Research | Identified exit to Testing 33310 | -2/Research | Entered Testing 33310 | -2/Testing | Accompanied by 1 ally 33559 | -2/Testing | Lost 3 allies 33621 | -2/Testing | Scanned by Researcher 33681 | -2/Testing | System corruption reached 10% 33824 | -2/Testing | Found Thermal Barrier 33895 | -2/Testing | Found Prototype Hackware 33895 | -2/Testing | Identified Exp. Hacking Suite 34055 | -2/Testing | Spotted Striker 34485 | -2/Testing | Found SHELL Armor 34878 | -2/Testing | Spotted PL-MP1051JZFT 34884 | -2/Testing | Rewired PL-MP1051JZFT 34973 | -2/Testing | Garrison activated, responded to threat 35122 | -2/Testing | Lost 3 allies 35205 | -2/Testing | Discovered new exit (range 14) 35329 | -2/Testing | Found Prototype Energy Gun 35329 | -2/Testing | Identified Tachyon Dispersion Ray 35426 | -2/Testing | Found Prototype Energy Cannon 35426 | -2/Testing | Identified Disintegrator 36242 | -2/Testing | Spotted Fortress 36250 | -2/Testing | Assimilated Fortress with formatsys_high 36348 | -2/Testing | Discovered new exit (range 6) 36377 | -2/Testing | Entered Section 7 36377 | -2/Section 7 | Accompanied by 1 ally 36383 | -2/Section 7 | Spotted S7 Guard 36395 | -2/Section 7 | Found Alien Artifact 36409 | -2/Section 7 | Destroyed S7 Guard 36473 | -2/Section 7 | Found Alien Artifact 36473 | -2/Section 7 | Identified Integrated Mediator 36473 | -2/Section 7 | Installed Integrated Mediator, increased core attachment efficiency 36552 | -2/Section 7 | Found Integrity Redistributor 36572 | -2/Section 7 | System corruption reached 30% 36704 | -2/Section 7 | Found Alien Artifact 36751 | -2/Section 7 | Installed Integrated Dissipator, increased core heat dissipation (+20) 37006 | -2/Section 7 | Lost 3 allies 37025 | -2/Section 7 | Spotted B-90 Cyclops 37034 | -2/Section 7 | Destroyed B-90 Cyclops 37266 | -2/Section 7 | Spotted S7 Guard 37282 | -2/Section 7 | Destroyed S7 Guard 37290 | -2/Section 7 | Spotted S7 Guard 37290 | -2/Section 7 | Spotted S7 Guard 37291 | -2/Section 7 | Autoassimilated S7 Guard with RIF 37300 | -2/Section 7 | Destroyed S7 Guard 37553 | -2/Section 7 | Found Quantum Capacitor 37901 | -2/Section 7 | Found Alien Artifact 37925 | -2/Section 7 | Found Alien Artifact 37945 | -2/Section 7 | Found Alien Artifact 38127 | -2/Section 7 | First assault squad dispatched 38141 | -2/Section 7 | Spotted Alpha 7 38147 | -2/Section 7 | Spotted Alpha 7 38173 | -2/Section 7 | Assimilated Alpha 7 with formatsys_high 38176 | -2/Section 7 | Assimilated Alpha 7 with formatsys_high 38267 | -2/Section 7 | Spotted B-99 Colossus 38293 | -2/Section 7 | Destroyed B-99 Colossus 38310 | -2/Section 7 | Found Hvy. Insulated Plating 38444 | -2/Section 7 | Found Alien Artifact 38447 | -2/Section 7 | Found Alien Artifact 38450 | -2/Section 7 | Found Alien Artifact 38541 | -2/Section 7 | Found Alien Artifact 38541 | -2/Section 7 | Identified LRC Storage 38541 | -2/Section 7 | Installed LRC Storage, increased inventory capacity (+2) 38554 | -2/Section 7 | Found Alien Artifact 38554 | -2/Section 7 | Identified LRC Insulator 38554 | -2/Section 7 | Installed LRC Insulator, gained EM resistance (25) 38557 | -2/Section 7 | Found Alien Artifact 38557 | -2/Section 7 | Identified LRC Energy Well 38557 | -2/Section 7 | Installed LRC Energy Well, increased energy storage capacity (+250) 38872 | -2/Section 7 | Spotted Executioner 38874 | -2/Section 7 | Spotted Executioner 38875 | -2/Section 7 | Autoassimilated Executioner with RIF 38877 | -2/Section 7 | Destroyed Executioner 39335 | -2/Section 7 | Scanned by Researcher 39336 | -2/Section 7 | Intercept squad dispatched 39351 | -2/Section 7 | Spotted Tracker 39351 | -2/Section 7 | Spotted Tracker 39356 | -2/Section 7 | Allies destroyed Tracker 39380 | -2/Section 7 | Spotted Combat Programmer 39381 | -2/Section 7 | Spotted Combat Programmer 39422 | -2/Section 7 | Lost 3 parts (1n2u) 39426 | -2/Section 7 | Destroyed Tracker 39434 | -2/Section 7 | Installed Core Membrane, gained immunity to corruption 39437 | -2/Section 7 | Destroyed Combat Programmer 39440 | -2/Section 7 | Destroyed Combat Programmer 39521 | -2/Section 7 | Discovered new exit (range 8) 39534 | -2/Section 7 | Entered Access 39534 | -1/Access | Evolved 2 slots: Utility x2 39534 | -1/Access | Installed Core Expander, added new Power slot 39628 | -1/Access | Found Quantum Capacitor 39890 | -1/Access | Identified exit to Garrison 39890 | -1/Access | Entered Garrison 39914 | -1/Garrison | Triggered checkpoint 39997 | -1/Garrison | Garrison Relay disabled 40052 | -1/Garrison | Garrison Relay disabled 40101 | -1/Garrison | Lost 3 allies 40189 | -1/Garrison | Garrison Relay disabled 40257 | -1/Garrison | P-80 Master assimilated allied Warden 10a 40326 | -1/Garrison | Spotted B-99 Colossus 40329 | -1/Garrison | Autoassimilated Colossus 10a with RIF 40344 | -1/Garrison | Lost 3 allies 40426 | -1/Garrison | Lost 3 allies 40452 | -1/Garrison | Triggered checkpoint 40496 | -1/Garrison | Lost 3 allies 40540 | -1/Garrison | Garrison Relay disabled 40556 | -1/Garrison | Triggered checkpoint 40621 | -1/Garrison | Heavy support dispatched to Access 40693 | -1/Garrison | Expanded RIF knowledge: Patrol Navigation 40704 | -1/Garrison | Discovered new exit (range 3) 40954 | -1/Garrison | Garrison Relay disabled 41084 | -1/Garrison | Triggered checkpoint 41096 | -1/Garrison | Triggered checkpoint 41140 | -1/Garrison | Triggered checkpoint 41196 | -1/Garrison | Lost 5 parts (2p2u1w) 41316 | -1/Garrison | Discovered new exit (range 14) 41443 | -1/Garrison | Build established: Generator-Mutant 41502 | -1/Garrison | Triggered checkpoint 41656 | -1/Garrison | Triggered checkpoint 41692 | -1/Garrison | Lost 5 allies 41695 | -1/Garrison | Garrison Relay disabled 41714 | -1/Garrison | Used Core Regenerator, restored core integrity (+248) 41792 | -1/Garrison | Heavy support dispatched to Access 41796 | -1/Garrison | Discovered new exit (range 3) 41878 | -1/Garrison | H-XX Assembler disabled 41997 | -1/Garrison | Entered Access 41997 | -1/Access | Accompanied by 1 ally 42007 | -1/Access | Energy Cycler disabled 42247 | -1/Access | First assault squad dispatched 42520 | -1/Access | Used Integrity Redistributor, redistributed integrity from core (-398) 42555 | -1/Access | Destroyed 9 combat bots 42582 | -1/Access | Spotted B-99 Colossus 42595 | -1/Access | Destroyed B-99 Colossus 42666 | -1/Access | High security lockdown imminent 42727 | -1/Access | Lost 11 parts (3p3n3u2w) 42746 | -1/Access | High security lockdown engaged 42805 | -1/Access | Intercept squad dispatched 42831 | -1/Access | Spotted Tracker 42832 | -1/Access | Spotted Tracker 42838 | -1/Access | Allies destroyed Tracker 42890 | -1/Access | Spotted Combat Programmer 42892 | -1/Access | Autoassimilated Combat Programmer with RIF 42894 | -1/Access | Spotted Combat Programmer 42894 | -1/Access | Spotted Striker 42895 | -1/Access | Autoassimilated Combat Programmer with RIF 42898 | -1/Access | Allies destroyed Striker 42899 | -1/Access | Lost 4 allies 42919 | -1/Access | Discovered new exit (range 8) 42930 | -1/Access | Entered Command 42952 | -1/Command | Build established: Botlord-Mutant 43180 | -1/Command | First assault squad dispatched 43233 | -1/Command | Assimilated ARC 10a with formatsys_deep 43383 | -1/Command | Spotted B-99 Colossus 43384 | -1/Command | Autoassimilated Colossus 10b with RIF 43661 | -1/Command | Spotted Alpha 7 43661 | -1/Command | Spotted Striker 43661 | -1/Command | Spotted Executioner 43661 | -1/Command | Spotted Executioner 43661 | -1/Command | Spotted Alpha 7 43661 | -1/Command | Spotted Striker 43661 | -1/Command | Spotted Executioner 43661 | -1/Command | Spotted Executioner 43662 | -1/Command | Autoassimilated Striker with RIF 43662 | -1/Command | Spotted B-99 Colossus 43667 | -1/Command | Core integrity fell below 50% 43667 | -1/Command | Assimilated Colossus 10c with formatsys_high 43672 | -1/Command | Assimilated Executioner with formatsys_high 43672 | -1/Command | Allies destroyed Executioner 43679 | -1/Command | Allies destroyed Alpha 7 43680 | -1/Command | Destroyed Alpha 7 43682 | -1/Command | Allies destroyed Striker 43686 | -1/Command | Spotted B-99 Colossus 43688 | -1/Command | Discovered new exit (range 16) 43702 | -1/Command | Allies destroyed B-99 Colossus 43728 | -1/Command | Lost 4 allies 43751 | *** | Escaped! Last Messages --------------- 43702_ B-99 Colossus destroyed. 43703_ Acquired 10 matter. 43705_ The Access Shell folds into the floor. 43705_ Field strength at 50. 43706_ Field strength at 25. 43707_ Stasis field depleted. 43709_ Executioner triggered Stasis Trap. 43709_ A bubble of rippling energy engulfs the area. 43709_ Field strength at 75. 43710_ Field strength at 50. 43711_ Field strength at 25. 43712_ Stasis field depleted. 43738_ R-10 Processor collects Impulse Thruster Array. 43742_ R-10 Processor collects Imp. Quantum Reactor. 43745_ R-10 Processor collects Exp. Core Analyzer. 43749_ G-73 Enforcer unfolds itself. 43750_ Jacked G-73 Enforcer... >>parse_system Reading system data... 43750_ Field strength at 26. Map ----- +----------------------------------------------------+ | ????????? !! # ! #???????????? | | ????????? !! ###########???????????? | | ????????? !! ##????????????????????? | | ????????? "?????????????????????? | | ???????????## #?????????????????????? | | ????????????# #?????????????????????? | | ????????????###+####### #?????????????????????? | | ?????????????????????## ! !#?????????????????????? | | ?????????????????????#%++++##????????????????????? | | ?????????????????????#^^^^=!#????????????????????? | | ????????????????????##!^%=/%##???????????????????? | | ????????????????????# g]=%^*#???????????????????? | | ????????????????????## ^ =^%!#???????????????????? | | ????????????????????#[%^^ ^!%#???????????????????? | | ????????????????????##^![!=^##???????????????????? | | ????????????????????# %!^!^%[##??????????????????? | | ????????????????????## !=[!!;#??????????????????? | | ????????????????????# ^[!%%;##?????????????????? | | ??????????????????#### ^ [==;;#?????????????????? | | ??????????????????# % % #?????????????????? | | ??????????????????#%%% #?????????????????? | | ??????????????????# ^ #?????????????????? | | ??????????????????# #?????????????????? | | ??????????????????# ^ E #?????????????????? | | ??????????????????# "" #?????????????????? | | ??????????????????# "@ #?????????????????? | | ??????????????????# ^ #?????????????????? | | ??????????????????# #?????????????????? | | ??????????????????# ^ #?????????????????? | | ??????????????????# #?????????????##### | | ??????????????????# #?????????????#!! | | ??????????????????##############?????????????#!! | | ???????????????????????????????????????????###! | | ???????????????????????????????????????????? + | | ???????????????????????????????????????????### | | ?????????????????????????????????????????????# | | ?????????????????????????????????????????????#+### | | ?????????????????????????????????????????##### ### | | ????????????????????????????????????? | | ?????????????????????????????????????????######### | | ?????????????????????????????????????????????# | | ?????????????????????????????????????????????# | | ?????????????????????????????????????????????# | | ?????????????????????????????????????????????# | | ?????????????????????????????????????????????# | | ?????????????????????????????????????????????# | | ????????????????????????????????????????????###+## | | ????????????????????????????????????????????# | | ????????????????????????????????????????????# "" | | ????????????????????????????????????????????# T"" | +----------------------------------------------------+ Best States ------------- Heat Dissipation 176 Energy Generation 89 Energy Capacity 2350 Matter Stores 300 Matter Capacity 300 Sight Range 16 Terrain Scan Density 10 Jamming Range 14 Cloak Strength 4 Base Temperature (-) 200 Armor Coverage 1800 Resistance: TH 50 Resistance: EM 25 Evasion (%) 40 Targeting Accuracy 5 Core Analysis 6 Recoil Reduction 6 Offensive Hacking 16 Defensive Hacking 10 Relay Coupler Types 6 Relay Coupler Value 171 Authchip Count 1 Item Schematics ----------------- Exp. Focal Shield | -2/Testing | Archive Exp. Core Analyzer | -2/Testing | Archive Exp. Actuator Array | -2/Testing | Archive Cld. Proton Cannon | -2/Testing | Archive Hdn. Centrium Leg | -2/Testing | Archive Hvy. Gatling Laser | -2/Testing | Archive Cld. Impulse Thruster | -2/Testing | Archive Hvy. Dispersion Rifle | -2/Testing | Archive Com. Linear Accelerator | -2/Testing | Archive Gravity Neutralizer | -2/Testing | Archive Exp. Biometal Heavy Treads | -2/Testing | Archive Exp. Power Amplifier | -2/Testing | Archive Exp. Q-thruster | -2/Testing | Archive Singularity Reactor | -2/Testing | Archive Adv. Plasma Rifle | -2/Testing | Archive Hvy. Tesla Rifle | -2/Testing | Archive Cld. Nuclear Pulse Thruster | -2/Section 7 | Archive Imp. Matter Neutralizer | -2/Section 7 | Archive Exp. Shock Absorption System | -2/Section 7 | Archive Exp. Terrain Scan Processor | -2/Section 7 | Archive Hvy. Neutron Cannon | -2/Section 7 | Archive Cld. Field Propulsion Drive | -2/Section 7 | Archive Exp. Energy Well | -2/Section 7 | Archive Exp. ECM Suite | -2/Section 7 | Archive Cld. Antigrav System | -2/Section 7 | Archive Robot Schematics ------------------ M-13 Machinist | -10/Materials | Hacked M-14 Sweeper | -8/Materials | Hacked P-60 Hacker | -6/Factory | Hacked R-06 Scavenger | -2/Testing | Archive A-02 Transporter | -2/Testing | Archive B-74 Champion | -2/Testing | Archive Y-72 Warden | -2/Testing | Archive R-10 Processor | -2/Testing | Archive L-61 Swordsman | -2/Testing | Archive E-15 Imp | -2/Section 7 | Archive Fabricated ------------ M-13 Machinist | x1 | -3/Research | Authchip Alien Tech Used ----------------- Integrated Mediator Integrated Dissipator LRC Storage LRC Insulator LRC Energy Well Core Membrane Core Expander Core Regenerator Integrity Redistributor Achievements -------------- None Challenges ------------ None Game ------ Seed HelicalScatterClaymores Manual? 0 Play Time 04:22:14 Cumulative 581.0 hours Start 2025.01.17 @ 08:19:34 End 2025.01.17 @ 19:31:26 Sessions 7 Manual Loads 0 Difficulty Rogue Special Mode None Game No. 328 Rogue 328 Adventurer 0 Explorer 0 Win Type 0 Total 47 Types 32/4/5/1/1/0/2/1/1 Lore% 88 Gallery% 87 Achievement% 86 Wizard Run 0 Options --------- Layout 0 ASCII 0 Keyboard 1 Movement Numpad Keybinds 0 Fullscreen 2 Font 18/SmallcapsGlow Map View 76x50 Zoom Use 0% Tactical HUD 1 Map Filters NONE Filters NONE Steam 1 RUN: b95779ed-3bc7-4b0e-bbad-ee93c3806e39